{"text_format":"1","workbook":"xlsx","n_sheets":3,"sheets":["Rate Pages","Plan Design Summary","Rates by County"],"not_rendered":{"charts":0,"images":0,"macros":1,"external_links":0,"defined_names":3,"comments":0,"pivot_tables":0},"unopened":[],"bounds":{"document_bytes":16777216,"sheet_cells":100000,"rows_first":2000,"rows_last":500,"rows_between":2000,"halvings":0,"cell_chars":16384,"cell_head_chars":4096},"cells_cut":0,"cells_raw":0,"read":"whole","date_system":"1900"}

{"sheet":"Rate Pages","index":0,"n_rows":69,"n_cols":12,"rows_kept":69,"cut":false,"hidden":false,"merged":[[16,8,16,9],[8,8,8,9],[9,8,9,9],[15,4,15,5],[6,6,6,7],[10,6,10,7],[11,6,11,7],[12,6,12,7],[13,6,13,7],[14,6,14,7],[15,6,15,7],[6,8,6,9],[15,8,15,9],[7,8,7,9],[12,8,12,9],[13,8,13,9],[16,2,16,3],[7,2,7,3],[5,2,5,3],[5,4,5,5],[5,6,5,7],[10,2,10,3],[11,2,11,3],[9,2,9,3],[6,2,6,3],[14,2,14,3],[12,2,12,3],[13,2,13,3],[15,2,15,3],[8,2,8,3],[8,6,8,7],[8,4,8,5],[14,8,14,9],[11,8,11,9],[11,4,11,5],[10,8,10,9],[10,4,10,5],[9,6,9,7],[9,4,9,5],[16,6,16,7],[16,4,16,5],[14,4,14,5],[13,4,13,5],[12,4,12,5],[7,6,7,7],[7,4,7,5],[6,4,6,5],[5,8,5,9],[3,8,3,9],[12,10,12,11],[13,10,13,11],[14,10,14,11],[15,10,15,11],[16,10,16,11],[7,10,7,11],[8,10,8,11],[9,10,9,11],[10,10,10,11],[11,10,11,11],[0,2,0,3],[1,2,1,3],[2,2,2,3],[5,10,5,11],[6,10,6,11],[3,2,3,3]]}
[null,"Company Name:"]
[null,"Market:","Individual"]
[null,"Product:"]
[null,"Effective Date of Rates:","2019-01-01",null,null,null,"Ending date of Rates:",null,"2019-12-31"]
[]
[null,"HIOS Plan ID (On Exchange)=>"]
[null,"HIOS Plan ID (Off Exchange)=>"]
[null,"Plan Marketing Name =>"]
[null,"Form # =>"]
[null,"Rating Area =>"]
[null,"Network =>"]
[null,"Metal =>"]
[null,"Deductible =>"]
[null,"Coinsurance =>"]
[null,"Copays =>"]
[null,"OOP Maximum =>"]
[null,"Pediatric Dental (Yes/No) =>"]
[null,"Age Band","Non-Tobacco","Tobacco","Non-Tobacco","Tobacco","Non-Tobacco","Tobacco","Non-Tobacco","Tobacco","Non-Tobacco","Tobacco"]
[null,"0 - 14"]
[null,15]
[null,16]
[null,17]
[null,18]
[null,19]
[null,20]
[null,21]
[null,22]
[null,23]
[null,24]
[null,25]
[null,26]
[null,27]
[null,28]
[null,29]
[null,30]
[null,31]
[null,32]
[null,33]
[null,34]
[null,35]
[null,36]
[null,37]
[null,38]
[null,39]
[null,40]
[null,41]
[null,42]
[null,43]
[null,44]
[null,45]
[null,46]
[null,47]
[null,48]
[null,49]
[null,50]
[null,51]
[null,52]
[null,53]
[null,54]
[null,55]
[null,56]
[null,57]
[null,58]
[null,59]
[null,60]
[null,61]
[null,62]
[null,63]
[null,"64+"]

{"sheet":"Plan Design Summary","index":1,"n_rows":6,"n_cols":9,"rows_kept":6,"cut":false,"hidden":false,"merged":[[0,1,0,8],[1,1,1,8],[2,1,2,8]]}
[null,{"$f":"'Rate Pages'!C1","v":0}]
[null,{"$f":"'Rate Pages'!C2","v":"Individual"}]
[null,"Plan Design Summary"]
[]
[]
[null,"HIOS Plan ID","Plan Marketing Name","Product","Metal","On/Off Exchange","Network","Rating Area","Counties Covered"]

{"sheet":"Rates by County","index":2,"n_rows":256,"n_cols":82,"rows_kept":256,"cut":false,"hidden":false,"merged":[[4,2,4,5]]}
[null,"Company Name",{"$f":"'Rate Pages'!C1","v":0}]
[null,"Market",{"$f":"'Rate Pages'!C2","v":"Individual"}]
[null,"RATES FOR AGE 21, NON-TOBACCO USER, BY RATING AREA AND COUNTY"]
[null,null,null,null,null,null,null,"RATING AREA 1",null,null,null,null,null,null,null,null,"RATING AREA 2",null,null,null,"RATING AREA 3",null,null,null,null,null,null,null,null,null,null,null,null,null,"RATING AREA 4",null,null,null,null,null,null,null,null,null,null,"RATING AREA 5",null,null,null,null,null,null,null,"RATING AREA 6",null,null,null,null,null,null,null,null,null,null,"RATING AREA 7",null,null,null,null,"RATING AREA 8",null,null,null,null,null,"RATING AREA 9"]
[null,null,{"$f":"TEXT(EDATE('Rate Pages'!$C$4,-11),\"MM-DD-YYYY\")&\" Number of Covered Lives by Rating County\"","v":"02-01-2018 Number of Covered Lives by Rating County"},null,null,null,null,0,0,0,0,0,0,0,0,null,0,0,0,null,0,0,0,0,0,0,0,0,0,0,0,0,0,null,0,0,0,0,0,0,0,0,0,0,null,0,0,0,0,0,0,0,null,0,0,0,0,0,0,0,0,0,0,null,0,0,0,0,null,0,0,0,0,0,null,0,0,0,0,0,0,0]
[null,"HIOS Plan ID","Plan Marketing Name","Product","Metal","On/Off Exchange",null,"Crawford","Clarion","Erie","Forest","Mckean","Mercer","Venango","Warren",null,"Elk","Cameron","Potter",null,"Bradford","Carbon","Clinton","Lackawanna","Luzerne","Lycoming","Monroe","Pike","Sullivan","Susquehanna","Tioga","Wayne","Wyoming",null,"Allegheny","Armstrong","Beaver","Butler","Fayette","Greene","Indiana","Lawrence","Washington","Westmoreland",null,"Bedford","Blair","Clearfield","Cambria","Huntingdon","Jefferson","Somerset",null,"Centre","Columbia","Lehigh","Mifflin","Montour","Northampton","Northumberland","Schuylkill","Snyder","Union",null,"Adams","Berks","Lancaster","York",null,"Bucks","Chester","Delaware","Montgomery","Philadelphia",null,"Cumberland","Dauphin","Franklin","Fulton","Juniata","Lebanon","Perry"]
[null,{"$f":"IF('Plan Design Summary'!B7=\"\",\"\",'Plan Design Summary'!B7)","v":""},{"$f":"IF('Plan Design Summary'!C7=\"\",\"\",'Plan Design Summary'!C7)","v":""},{"$f":"IF('Plan Design Summary'!D7=\"\",\"\",'Plan Design Summary'!D7)","v":""},{"$f":"IF('Plan Design Summary'!E7=\"\",\"\",'Plan Design Summary'!E7)","v":""},{"$f":"IF('Plan Design Summary'!F7=\"\",\"\",'Plan Design Summary'!F7)","v":""}]
[null,{"$f":"IF('Plan Design Summary'!B8=\"\",\"\",'Plan Design Summary'!B8)","v":""},{"$f":"IF('Plan Design Summary'!C8=\"\",\"\",'Plan Design Summary'!C8)","v":""},{"$f":"IF('Plan Design Summary'!D8=\"\",\"\",'Plan Design Summary'!D8)","v":""},{"$f":"IF('Plan Design Summary'!E8=\"\",\"\",'Plan Design Summary'!E8)","v":""},{"$f":"IF('Plan Design Summary'!F8=\"\",\"\",'Plan Design Summary'!F8)","v":""}]
[null,{"$f":"IF('Plan Design Summary'!B9=\"\",\"\",'Plan Design Summary'!B9)","v":""},{"$f":"IF('Plan Design Summary'!C9=\"\",\"\",'Plan Design Summary'!C9)","v":""},{"$f":"IF('Plan Design Summary'!D9=\"\",\"\",'Plan Design Summary'!D9)","v":""},{"$f":"IF('Plan Design Summary'!E9=\"\",\"\",'Plan Design Summary'!E9)","v":""},{"$f":"IF('Plan Design Summary'!F9=\"\",\"\",'Plan Design Summary'!F9)","v":""}]
[null,{"$f":"IF('Plan Design Summary'!B10=\"\",\"\",'Plan Design Summary'!B10)","v":""},{"$f":"IF('Plan Design Summary'!C10=\"\",\"\",'Plan Design Summary'!C10)","v":""},{"$f":"IF('Plan Design Summary'!D10=\"\",\"\",'Plan Design Summary'!D10)","v":""},{"$f":"IF('Plan Design Summary'!E10=\"\",\"\",'Plan Design Summary'!E10)","v":""},{"$f":"IF('Plan Design Summary'!F10=\"\",\"\",'Plan Design Summary'!F10)","v":""}]
[null,{"$f":"IF('Plan Design Summary'!B11=\"\",\"\",'Plan Design Summary'!B11)","v":""},{"$f":"IF('Plan Design Summary'!C11=\"\",\"\",'Plan Design Summary'!C11)","v":""},{"$f":"IF('Plan Design Summary'!D11=\"\",\"\",'Plan Design Summary'!D11)","v":""},{"$f":"IF('Plan Design Summary'!E11=\"\",\"\",'Plan Design Summary'!E11)","v":""},{"$f":"IF('Plan Design Summary'!F11=\"\",\"\",'Plan Design Summary'!F11)","v":""}]
[null,{"$f":"IF('Plan Design Summary'!B12=\"\",\"\",'Plan Design Summary'!B12)","v":""},{"$f":"IF('Plan Design Summary'!C12=\"\",\"\",'Plan Design Summary'!C12)","v":""},{"$f":"IF('Plan Design Summary'!D12=\"\",\"\",'Plan Design Summary'!D12)","v":""},{"$f":"IF('Plan Design Summary'!E12=\"\",\"\",'Plan Design Summary'!E12)","v":""},{"$f":"IF('Plan Design Summary'!F12=\"\",\"\",'Plan Design Summary'!F12)","v":""}]
[null,{"$f":"IF('Plan Design Summary'!B13=\"\",\"\",'Plan Design Summary'!B13)","v":""},{"$f":"IF('Plan Design Summary'!C13=\"\",\"\",'Plan Design Summary'!C13)","v":""},{"$f":"IF('Plan Design Summary'!D13=\"\",\"\",'Plan Design Summary'!D13)","v":""},{"$f":"IF('Plan Design Summary'!E13=\"\",\"\",'Plan Design Summary'!E13)","v":""},{"$f":"IF('Plan Design Summary'!F13=\"\",\"\",'Plan Design Summary'!F13)","v":""}]
[null,{"$f":"IF('Plan Design Summary'!B14=\"\",\"\",'Plan Design Summary'!B14)","v":""},{"$f":"IF('Plan Design Summary'!C14=\"\",\"\",'Plan Design Summary'!C14)","v":""},{"$f":"IF('Plan Design Summary'!D14=\"\",\"\",'Plan Design Summary'!D14)","v":""},{"$f":"IF('Plan Design Summary'!E14=\"\",\"\",'Plan Design Summary'!E14)","v":""},{"$f":"IF('Plan Design Summary'!F14=\"\",\"\",'Plan Design Summary'!F14)","v":""}]
[null,{"$f":"IF('Plan Design Summary'!B15=\"\",\"\",'Plan Design Summary'!B15)","v":""},{"$f":"IF('Plan Design Summary'!C15=\"\",\"\",'Plan Design Summary'!C15)","v":""},{"$f":"IF('Plan Design Summary'!D15=\"\",\"\",'Plan Design Summary'!D15)","v":""},{"$f":"IF('Plan Design Summary'!E15=\"\",\"\",'Plan Design Summary'!E15)","v":""},{"$f":"IF('Plan Design Summary'!F15=\"\",\"\",'Plan Design Summary'!F15)","v":""}]
[null,{"$f":"IF('Plan Design Summary'!B16=\"\",\"\",'Plan Design Summary'!B16)","v":""},{"$f":"IF('Plan Design Summary'!C16=\"\",\"\",'Plan Design Summary'!C16)","v":""},{"$f":"IF('Plan Design Summary'!D16=\"\",\"\",'Plan Design Summary'!D16)","v":""},{"$f":"IF('Plan Design Summary'!E16=\"\",\"\",'Plan Design Summary'!E16)","v":""},{"$f":"IF('Plan Design Summary'!F16=\"\",\"\",'Plan Design Summary'!F16)","v":""}]
[null,{"$f":"IF('Plan Design Summary'!B17=\"\",\"\",'Plan Design Summary'!B17)","v":""},{"$f":"IF('Plan Design Summary'!C17=\"\",\"\",'Plan Design Summary'!C17)","v":""},{"$f":"IF('Plan Design Summary'!D17=\"\",\"\",'Plan Design Summary'!D17)","v":""},{"$f":"IF('Plan Design Summary'!E17=\"\",\"\",'Plan Design Summary'!E17)","v":""},{"$f":"IF('Plan Design Summary'!F17=\"\",\"\",'Plan Design Summary'!F17)","v":""}]
[null,{"$f":"IF('Plan Design Summary'!B18=\"\",\"\",'Plan Design Summary'!B18)","v":""},{"$f":"IF('Plan Design Summary'!C18=\"\",\"\",'Plan Design Summary'!C18)","v":""},{"$f":"IF('Plan Design Summary'!D18=\"\",\"\",'Plan Design Summary'!D18)","v":""},{"$f":"IF('Plan Design Summary'!E18=\"\",\"\",'Plan Design Summary'!E18)","v":""},{"$f":"IF('Plan Design Summary'!F18=\"\",\"\",'Plan Design Summary'!F18)","v":""}]
[null,{"$f":"IF('Plan Design Summary'!B19=\"\",\"\",'Plan Design Summary'!B19)","v":""},{"$f":"IF('Plan Design Summary'!C19=\"\",\"\",'Plan Design Summary'!C19)","v":""},{"$f":"IF('Plan Design Summary'!D19=\"\",\"\",'Plan Design Summary'!D19)","v":""},{"$f":"IF('Plan Design Summary'!E19=\"\",\"\",'Plan Design Summary'!E19)","v":""},{"$f":"IF('Plan Design Summary'!F19=\"\",\"\",'Plan Design Summary'!F19)","v":""}]
[null,{"$f":"IF('Plan Design Summary'!B20=\"\",\"\",'Plan Design Summary'!B20)","v":""},{"$f":"IF('Plan Design Summary'!C20=\"\",\"\",'Plan Design Summary'!C20)","v":""},{"$f":"IF('Plan Design Summary'!D20=\"\",\"\",'Plan Design Summary'!D20)","v":""},{"$f":"IF('Plan Design Summary'!E20=\"\",\"\",'Plan Design Summary'!E20)","v":""},{"$f":"IF('Plan Design Summary'!F20=\"\",\"\",'Plan Design Summary'!F20)","v":""}]
[null,{"$f":"IF('Plan Design Summary'!B21=\"\",\"\",'Plan Design Summary'!B21)","v":""},{"$f":"IF('Plan Design Summary'!C21=\"\",\"\",'Plan Design Summary'!C21)","v":""},{"$f":"IF('Plan Design Summary'!D21=\"\",\"\",'Plan Design Summary'!D21)","v":""},{"$f":"IF('Plan Design Summary'!E21=\"\",\"\",'Plan Design Summary'!E21)","v":""},{"$f":"IF('Plan Design Summary'!F21=\"\",\"\",'Plan Design Summary'!F21)","v":""}]
[null,{"$f":"IF('Plan Design Summary'!B22=\"\",\"\",'Plan Design Summary'!B22)","v":""},{"$f":"IF('Plan Design Summary'!C22=\"\",\"\",'Plan Design Summary'!C22)","v":""},{"$f":"IF('Plan Design Summary'!D22=\"\",\"\",'Plan Design Summary'!D22)","v":""},{"$f":"IF('Plan Design Summary'!E22=\"\",\"\",'Plan Design Summary'!E22)","v":""},{"$f":"IF('Plan Design Summary'!F22=\"\",\"\",'Plan Design Summary'!F22)","v":""}]
[null,{"$f":"IF('Plan Design Summary'!B23=\"\",\"\",'Plan Design Summary'!B23)","v":""},{"$f":"IF('Plan Design Summary'!C23=\"\",\"\",'Plan Design Summary'!C23)","v":""},{"$f":"IF('Plan Design Summary'!D23=\"\",\"\",'Plan Design Summary'!D23)","v":""},{"$f":"IF('Plan Design Summary'!E23=\"\",\"\",'Plan Design Summary'!E23)","v":""},{"$f":"IF('Plan Design Summary'!F23=\"\",\"\",'Plan Design Summary'!F23)","v":""}]
[null,{"$f":"IF('Plan Design Summary'!B24=\"\",\"\",'Plan Design Summary'!B24)","v":""},{"$f":"IF('Plan Design Summary'!C24=\"\",\"\",'Plan Design Summary'!C24)","v":""},{"$f":"IF('Plan Design Summary'!D24=\"\",\"\",'Plan Design Summary'!D24)","v":""},{"$f":"IF('Plan Design Summary'!E24=\"\",\"\",'Plan Design Summary'!E24)","v":""},{"$f":"IF('Plan Design Summary'!F24=\"\",\"\",'Plan Design Summary'!F24)","v":""}]
[null,{"$f":"IF('Plan Design Summary'!B25=\"\",\"\",'Plan Design Summary'!B25)","v":""},{"$f":"IF('Plan Design Summary'!C25=\"\",\"\",'Plan Design Summary'!C25)","v":""},{"$f":"IF('Plan Design Summary'!D25=\"\",\"\",'Plan Design Summary'!D25)","v":""},{"$f":"IF('Plan Design Summary'!E25=\"\",\"\",'Plan Design Summary'!E25)","v":""},{"$f":"IF('Plan Design Summary'!F25=\"\",\"\",'Plan Design Summary'!F25)","v":""}]
[null,{"$f":"IF('Plan Design Summary'!B26=\"\",\"\",'Plan Design Summary'!B26)","v":""},{"$f":"IF('Plan Design Summary'!C26=\"\",\"\",'Plan Design Summary'!C26)","v":""},{"$f":"IF('Plan Design Summary'!D26=\"\",\"\",'Plan Design Summary'!D26)","v":""},{"$f":"IF('Plan Design Summary'!E26=\"\",\"\",'Plan Design Summary'!E26)","v":""},{"$f":"IF('Plan Design Summary'!F26=\"\",\"\",'Plan Design Summary'!F26)","v":""}]
[null,{"$f":"IF('Plan Design Summary'!B27=\"\",\"\",'Plan Design Summary'!B27)","v":""},{"$f":"IF('Plan Design Summary'!C27=\"\",\"\",'Plan Design Summary'!C27)","v":""},{"$f":"IF('Plan Design Summary'!D27=\"\",\"\",'Plan Design Summary'!D27)","v":""},{"$f":"IF('Plan Design Summary'!E27=\"\",\"\",'Plan Design Summary'!E27)","v":""},{"$f":"IF('Plan Design Summary'!F27=\"\",\"\",'Plan Design Summary'!F27)","v":""}]
[null,{"$f":"IF('Plan Design Summary'!B28=\"\",\"\",'Plan Design Summary'!B28)","v":""},{"$f":"IF('Plan Design Summary'!C28=\"\",\"\",'Plan Design Summary'!C28)","v":""},{"$f":"IF('Plan Design Summary'!D28=\"\",\"\",'Plan Design Summary'!D28)","v":""},{"$f":"IF('Plan Design Summary'!E28=\"\",\"\",'Plan Design Summary'!E28)","v":""},{"$f":"IF('Plan Design Summary'!F28=\"\",\"\",'Plan Design Summary'!F28)","v":""}]
[null,{"$f":"IF('Plan Design Summary'!B29=\"\",\"\",'Plan Design Summary'!B29)","v":""},{"$f":"IF('Plan Design Summary'!C29=\"\",\"\",'Plan Design Summary'!C29)","v":""},{"$f":"IF('Plan Design Summary'!D29=\"\",\"\",'Plan Design Summary'!D29)","v":""},{"$f":"IF('Plan Design Summary'!E29=\"\",\"\",'Plan Design Summary'!E29)","v":""},{"$f":"IF('Plan Design Summary'!F29=\"\",\"\",'Plan Design Summary'!F29)","v":""}]
[null,{"$f":"IF('Plan Design Summary'!B30=\"\",\"\",'Plan Design Summary'!B30)","v":""},{"$f":"IF('Plan Design Summary'!C30=\"\",\"\",'Plan Design Summary'!C30)","v":""},{"$f":"IF('Plan Design Summary'!D30=\"\",\"\",'Plan Design Summary'!D30)","v":""},{"$f":"IF('Plan Design Summary'!E30=\"\",\"\",'Plan Design Summary'!E30)","v":""},{"$f":"IF('Plan Design Summary'!F30=\"\",\"\",'Plan Design Summary'!F30)","v":""}]
[null,{"$f":"IF('Plan Design Summary'!B31=\"\",\"\",'Plan Design Summary'!B31)","v":""},{"$f":"IF('Plan Design Summary'!C31=\"\",\"\",'Plan Design Summary'!C31)","v":""},{"$f":"IF('Plan Design Summary'!D31=\"\",\"\",'Plan Design Summary'!D31)","v":""},{"$f":"IF('Plan Design Summary'!E31=\"\",\"\",'Plan Design Summary'!E31)","v":""},{"$f":"IF('Plan Design Summary'!F31=\"\",\"\",'Plan Design Summary'!F31)","v":""}]
[null,{"$f":"IF('Plan Design Summary'!B32=\"\",\"\",'Plan Design Summary'!B32)","v":""},{"$f":"IF('Plan Design Summary'!C32=\"\",\"\",'Plan Design Summary'!C32)","v":""},{"$f":"IF('Plan Design Summary'!D32=\"\",\"\",'Plan Design Summary'!D32)","v":""},{"$f":"IF('Plan Design Summary'!E32=\"\",\"\",'Plan Design Summary'!E32)","v":""},{"$f":"IF('Plan Design Summary'!F32=\"\",\"\",'Plan Design Summary'!F32)","v":""}]
[null,{"$f":"IF('Plan Design Summary'!B33=\"\",\"\",'Plan Design Summary'!B33)","v":""},{"$f":"IF('Plan Design Summary'!C33=\"\",\"\",'Plan Design Summary'!C33)","v":""},{"$f":"IF('Plan Design Summary'!D33=\"\",\"\",'Plan Design Summary'!D33)","v":""},{"$f":"IF('Plan Design Summary'!E33=\"\",\"\",'Plan Design Summary'!E33)","v":""},{"$f":"IF('Plan Design Summary'!F33=\"\",\"\",'Plan Design Summary'!F33)","v":""}]
[null,{"$f":"IF('Plan Design Summary'!B34=\"\",\"\",'Plan Design Summary'!B34)","v":""},{"$f":"IF('Plan Design Summary'!C34=\"\",\"\",'Plan Design Summary'!C34)","v":""},{"$f":"IF('Plan Design Summary'!D34=\"\",\"\",'Plan Design Summary'!D34)","v":""},{"$f":"IF('Plan Design Summary'!E34=\"\",\"\",'Plan Design Summary'!E34)","v":""},{"$f":"IF('Plan Design Summary'!F34=\"\",\"\",'Plan Design Summary'!F34)","v":""}]
[null,{"$f":"IF('Plan Design Summary'!B35=\"\",\"\",'Plan Design Summary'!B35)","v":""},{"$f":"IF('Plan Design Summary'!C35=\"\",\"\",'Plan Design Summary'!C35)","v":""},{"$f":"IF('Plan Design Summary'!D35=\"\",\"\",'Plan Design Summary'!D35)","v":""},{"$f":"IF('Plan Design Summary'!E35=\"\",\"\",'Plan Design Summary'!E35)","v":""},{"$f":"IF('Plan Design Summary'!F35=\"\",\"\",'Plan Design Summary'!F35)","v":""}]
[null,{"$f":"IF('Plan Design Summary'!B36=\"\",\"\",'Plan Design Summary'!B36)","v":""},{"$f":"IF('Plan Design Summary'!C36=\"\",\"\",'Plan Design Summary'!C36)","v":""},{"$f":"IF('Plan Design Summary'!D36=\"\",\"\",'Plan Design Summary'!D36)","v":""},{"$f":"IF('Plan Design Summary'!E36=\"\",\"\",'Plan Design Summary'!E36)","v":""},{"$f":"IF('Plan Design Summary'!F36=\"\",\"\",'Plan Design Summary'!F36)","v":""}]
[null,{"$f":"IF('Plan Design Summary'!B37=\"\",\"\",'Plan Design Summary'!B37)","v":""},{"$f":"IF('Plan Design Summary'!C37=\"\",\"\",'Plan Design Summary'!C37)","v":""},{"$f":"IF('Plan Design Summary'!D37=\"\",\"\",'Plan Design Summary'!D37)","v":""},{"$f":"IF('Plan Design Summary'!E37=\"\",\"\",'Plan Design Summary'!E37)","v":""},{"$f":"IF('Plan Design Summary'!F37=\"\",\"\",'Plan Design Summary'!F37)","v":""}]
[null,{"$f":"IF('Plan Design Summary'!B38=\"\",\"\",'Plan Design Summary'!B38)","v":""},{"$f":"IF('Plan Design Summary'!C38=\"\",\"\",'Plan Design Summary'!C38)","v":""},{"$f":"IF('Plan Design Summary'!D38=\"\",\"\",'Plan Design Summary'!D38)","v":""},{"$f":"IF('Plan Design Summary'!E38=\"\",\"\",'Plan Design Summary'!E38)","v":""},{"$f":"IF('Plan Design Summary'!F38=\"\",\"\",'Plan Design Summary'!F38)","v":""}]
[null,{"$f":"IF('Plan Design Summary'!B39=\"\",\"\",'Plan Design Summary'!B39)","v":""},{"$f":"IF('Plan Design Summary'!C39=\"\",\"\",'Plan Design Summary'!C39)","v":""},{"$f":"IF('Plan Design Summary'!D39=\"\",\"\",'Plan Design Summary'!D39)","v":""},{"$f":"IF('Plan Design Summary'!E39=\"\",\"\",'Plan Design Summary'!E39)","v":""},{"$f":"IF('Plan Design Summary'!F39=\"\",\"\",'Plan Design Summary'!F39)","v":""}]
[null,{"$f":"IF('Plan Design Summary'!B40=\"\",\"\",'Plan Design Summary'!B40)","v":""},{"$f":"IF('Plan Design Summary'!C40=\"\",\"\",'Plan Design Summary'!C40)","v":""},{"$f":"IF('Plan Design Summary'!D40=\"\",\"\",'Plan Design Summary'!D40)","v":""},{"$f":"IF('Plan Design Summary'!E40=\"\",\"\",'Plan Design Summary'!E40)","v":""},{"$f":"IF('Plan Design Summary'!F40=\"\",\"\",'Plan Design Summary'!F40)","v":""}]
[null,{"$f":"IF('Plan Design Summary'!B41=\"\",\"\",'Plan Design Summary'!B41)","v":""},{"$f":"IF('Plan Design Summary'!C41=\"\",\"\",'Plan Design Summary'!C41)","v":""},{"$f":"IF('Plan Design Summary'!D41=\"\",\"\",'Plan Design Summary'!D41)","v":""},{"$f":"IF('Plan Design Summary'!E41=\"\",\"\",'Plan Design Summary'!E41)","v":""},{"$f":"IF('Plan Design Summary'!F41=\"\",\"\",'Plan Design Summary'!F41)","v":""}]
[null,{"$f":"IF('Plan Design Summary'!B42=\"\",\"\",'Plan Design Summary'!B42)","v":""},{"$f":"IF('Plan Design Summary'!C42=\"\",\"\",'Plan Design Summary'!C42)","v":""},{"$f":"IF('Plan Design Summary'!D42=\"\",\"\",'Plan Design Summary'!D42)","v":""},{"$f":"IF('Plan Design Summary'!E42=\"\",\"\",'Plan Design Summary'!E42)","v":""},{"$f":"IF('Plan Design Summary'!F42=\"\",\"\",'Plan Design Summary'!F42)","v":""}]
[null,{"$f":"IF('Plan Design Summary'!B43=\"\",\"\",'Plan Design Summary'!B43)","v":""},{"$f":"IF('Plan Design Summary'!C43=\"\",\"\",'Plan Design Summary'!C43)","v":""},{"$f":"IF('Plan Design Summary'!D43=\"\",\"\",'Plan Design Summary'!D43)","v":""},{"$f":"IF('Plan Design Summary'!E43=\"\",\"\",'Plan Design Summary'!E43)","v":""},{"$f":"IF('Plan Design Summary'!F43=\"\",\"\",'Plan Design Summary'!F43)","v":""}]
[null,{"$f":"IF('Plan Design Summary'!B44=\"\",\"\",'Plan Design Summary'!B44)","v":""},{"$f":"IF('Plan Design Summary'!C44=\"\",\"\",'Plan Design Summary'!C44)","v":""},{"$f":"IF('Plan Design Summary'!D44=\"\",\"\",'Plan Design Summary'!D44)","v":""},{"$f":"IF('Plan Design Summary'!E44=\"\",\"\",'Plan Design Summary'!E44)","v":""},{"$f":"IF('Plan Design Summary'!F44=\"\",\"\",'Plan Design Summary'!F44)","v":""}]
[null,{"$f":"IF('Plan Design Summary'!B45=\"\",\"\",'Plan Design Summary'!B45)","v":""},{"$f":"IF('Plan Design Summary'!C45=\"\",\"\",'Plan Design Summary'!C45)","v":""},{"$f":"IF('Plan Design Summary'!D45=\"\",\"\",'Plan Design Summary'!D45)","v":""},{"$f":"IF('Plan Design Summary'!E45=\"\",\"\",'Plan Design Summary'!E45)","v":""},{"$f":"IF('Plan Design Summary'!F45=\"\",\"\",'Plan Design Summary'!F45)","v":""}]
[null,{"$f":"IF('Plan Design Summary'!B46=\"\",\"\",'Plan Design Summary'!B46)","v":""},{"$f":"IF('Plan Design Summary'!C46=\"\",\"\",'Plan Design Summary'!C46)","v":""},{"$f":"IF('Plan Design Summary'!D46=\"\",\"\",'Plan Design Summary'!D46)","v":""},{"$f":"IF('Plan Design Summary'!E46=\"\",\"\",'Plan Design Summary'!E46)","v":""},{"$f":"IF('Plan Design Summary'!F46=\"\",\"\",'Plan Design Summary'!F46)","v":""}]
[null,{"$f":"IF('Plan Design Summary'!B47=\"\",\"\",'Plan Design Summary'!B47)","v":""},{"$f":"IF('Plan Design Summary'!C47=\"\",\"\",'Plan Design Summary'!C47)","v":""},{"$f":"IF('Plan Design Summary'!D47=\"\",\"\",'Plan Design Summary'!D47)","v":""},{"$f":"IF('Plan Design Summary'!E47=\"\",\"\",'Plan Design Summary'!E47)","v":""},{"$f":"IF('Plan Design Summary'!F47=\"\",\"\",'Plan Design Summary'!F47)","v":""}]
[null,{"$f":"IF('Plan Design Summary'!B48=\"\",\"\",'Plan Design Summary'!B48)","v":""},{"$f":"IF('Plan Design Summary'!C48=\"\",\"\",'Plan Design Summary'!C48)","v":""},{"$f":"IF('Plan Design Summary'!D48=\"\",\"\",'Plan Design Summary'!D48)","v":""},{"$f":"IF('Plan Design Summary'!E48=\"\",\"\",'Plan Design Summary'!E48)","v":""},{"$f":"IF('Plan Design Summary'!F48=\"\",\"\",'Plan Design Summary'!F48)","v":""}]
[null,{"$f":"IF('Plan Design Summary'!B49=\"\",\"\",'Plan Design Summary'!B49)","v":""},{"$f":"IF('Plan Design Summary'!C49=\"\",\"\",'Plan Design Summary'!C49)","v":""},{"$f":"IF('Plan Design Summary'!D49=\"\",\"\",'Plan Design Summary'!D49)","v":""},{"$f":"IF('Plan Design Summary'!E49=\"\",\"\",'Plan Design Summary'!E49)","v":""},{"$f":"IF('Plan Design Summary'!F49=\"\",\"\",'Plan Design Summary'!F49)","v":""}]
[null,{"$f":"IF('Plan Design Summary'!B50=\"\",\"\",'Plan Design Summary'!B50)","v":""},{"$f":"IF('Plan Design Summary'!C50=\"\",\"\",'Plan Design Summary'!C50)","v":""},{"$f":"IF('Plan Design Summary'!D50=\"\",\"\",'Plan Design Summary'!D50)","v":""},{"$f":"IF('Plan Design Summary'!E50=\"\",\"\",'Plan Design Summary'!E50)","v":""},{"$f":"IF('Plan Design Summary'!F50=\"\",\"\",'Plan Design Summary'!F50)","v":""}]
[null,{"$f":"IF('Plan Design Summary'!B51=\"\",\"\",'Plan Design Summary'!B51)","v":""},{"$f":"IF('Plan Design Summary'!C51=\"\",\"\",'Plan Design Summary'!C51)","v":""},{"$f":"IF('Plan Design Summary'!D51=\"\",\"\",'Plan Design Summary'!D51)","v":""},{"$f":"IF('Plan Design Summary'!E51=\"\",\"\",'Plan Design Summary'!E51)","v":""},{"$f":"IF('Plan Design Summary'!F51=\"\",\"\",'Plan Design Summary'!F51)","v":""}]
[null,{"$f":"IF('Plan Design Summary'!B52=\"\",\"\",'Plan Design Summary'!B52)","v":""},{"$f":"IF('Plan Design Summary'!C52=\"\",\"\",'Plan Design Summary'!C52)","v":""},{"$f":"IF('Plan Design Summary'!D52=\"\",\"\",'Plan Design Summary'!D52)","v":""},{"$f":"IF('Plan Design Summary'!E52=\"\",\"\",'Plan Design Summary'!E52)","v":""},{"$f":"IF('Plan Design Summary'!F52=\"\",\"\",'Plan Design Summary'!F52)","v":""}]
[null,{"$f":"IF('Plan Design Summary'!B53=\"\",\"\",'Plan Design Summary'!B53)","v":""},{"$f":"IF('Plan Design Summary'!C53=\"\",\"\",'Plan Design Summary'!C53)","v":""},{"$f":"IF('Plan Design Summary'!D53=\"\",\"\",'Plan Design Summary'!D53)","v":""},{"$f":"IF('Plan Design Summary'!E53=\"\",\"\",'Plan Design Summary'!E53)","v":""},{"$f":"IF('Plan Design Summary'!F53=\"\",\"\",'Plan Design Summary'!F53)","v":""}]
[null,{"$f":"IF('Plan Design Summary'!B54=\"\",\"\",'Plan Design Summary'!B54)","v":""},{"$f":"IF('Plan Design Summary'!C54=\"\",\"\",'Plan Design Summary'!C54)","v":""},{"$f":"IF('Plan Design Summary'!D54=\"\",\"\",'Plan Design Summary'!D54)","v":""},{"$f":"IF('Plan Design Summary'!E54=\"\",\"\",'Plan Design Summary'!E54)","v":""},{"$f":"IF('Plan Design Summary'!F54=\"\",\"\",'Plan Design Summary'!F54)","v":""}]
[null,{"$f":"IF('Plan Design Summary'!B55=\"\",\"\",'Plan Design Summary'!B55)","v":""},{"$f":"IF('Plan Design Summary'!C55=\"\",\"\",'Plan Design Summary'!C55)","v":""},{"$f":"IF('Plan Design Summary'!D55=\"\",\"\",'Plan Design Summary'!D55)","v":""},{"$f":"IF('Plan Design Summary'!E55=\"\",\"\",'Plan Design Summary'!E55)","v":""},{"$f":"IF('Plan Design Summary'!F55=\"\",\"\",'Plan Design Summary'!F55)","v":""}]
[null,{"$f":"IF('Plan Design Summary'!B56=\"\",\"\",'Plan Design Summary'!B56)","v":""},{"$f":"IF('Plan Design Summary'!C56=\"\",\"\",'Plan Design Summary'!C56)","v":""},{"$f":"IF('Plan Design Summary'!D56=\"\",\"\",'Plan Design Summary'!D56)","v":""},{"$f":"IF('Plan Design Summary'!E56=\"\",\"\",'Plan Design Summary'!E56)","v":""},{"$f":"IF('Plan Design Summary'!F56=\"\",\"\",'Plan Design Summary'!F56)","v":""}]
[null,{"$f":"IF('Plan Design Summary'!B57=\"\",\"\",'Plan Design Summary'!B57)","v":""},{"$f":"IF('Plan Design Summary'!C57=\"\",\"\",'Plan Design Summary'!C57)","v":""},{"$f":"IF('Plan Design Summary'!D57=\"\",\"\",'Plan Design Summary'!D57)","v":""},{"$f":"IF('Plan Design Summary'!E57=\"\",\"\",'Plan Design Summary'!E57)","v":""},{"$f":"IF('Plan Design Summary'!F57=\"\",\"\",'Plan Design Summary'!F57)","v":""}]
[null,{"$f":"IF('Plan Design Summary'!B58=\"\",\"\",'Plan Design Summary'!B58)","v":""},{"$f":"IF('Plan Design Summary'!C58=\"\",\"\",'Plan Design Summary'!C58)","v":""},{"$f":"IF('Plan Design Summary'!D58=\"\",\"\",'Plan Design Summary'!D58)","v":""},{"$f":"IF('Plan Design Summary'!E58=\"\",\"\",'Plan Design Summary'!E58)","v":""},{"$f":"IF('Plan Design Summary'!F58=\"\",\"\",'Plan Design Summary'!F58)","v":""}]
[null,{"$f":"IF('Plan Design Summary'!B59=\"\",\"\",'Plan Design Summary'!B59)","v":""},{"$f":"IF('Plan Design Summary'!C59=\"\",\"\",'Plan Design Summary'!C59)","v":""},{"$f":"IF('Plan Design Summary'!D59=\"\",\"\",'Plan Design Summary'!D59)","v":""},{"$f":"IF('Plan Design Summary'!E59=\"\",\"\",'Plan Design Summary'!E59)","v":""},{"$f":"IF('Plan Design Summary'!F59=\"\",\"\",'Plan Design Summary'!F59)","v":""}]
[null,{"$f":"IF('Plan Design Summary'!B60=\"\",\"\",'Plan Design Summary'!B60)","v":""},{"$f":"IF('Plan Design Summary'!C60=\"\",\"\",'Plan Design Summary'!C60)","v":""},{"$f":"IF('Plan Design Summary'!D60=\"\",\"\",'Plan Design Summary'!D60)","v":""},{"$f":"IF('Plan Design Summary'!E60=\"\",\"\",'Plan Design Summary'!E60)","v":""},{"$f":"IF('Plan Design Summary'!F60=\"\",\"\",'Plan Design Summary'!F60)","v":""}]
[null,{"$f":"IF('Plan Design Summary'!B61=\"\",\"\",'Plan Design Summary'!B61)","v":""},{"$f":"IF('Plan Design Summary'!C61=\"\",\"\",'Plan Design Summary'!C61)","v":""},{"$f":"IF('Plan Design Summary'!D61=\"\",\"\",'Plan Design Summary'!D61)","v":""},{"$f":"IF('Plan Design Summary'!E61=\"\",\"\",'Plan Design Summary'!E61)","v":""},{"$f":"IF('Plan Design Summary'!F61=\"\",\"\",'Plan Design Summary'!F61)","v":""}]
[null,{"$f":"IF('Plan Design Summary'!B62=\"\",\"\",'Plan Design Summary'!B62)","v":""},{"$f":"IF('Plan Design Summary'!C62=\"\",\"\",'Plan Design Summary'!C62)","v":""},{"$f":"IF('Plan Design Summary'!D62=\"\",\"\",'Plan Design Summary'!D62)","v":""},{"$f":"IF('Plan Design Summary'!E62=\"\",\"\",'Plan Design Summary'!E62)","v":""},{"$f":"IF('Plan Design Summary'!F62=\"\",\"\",'Plan Design Summary'!F62)","v":""}]
[null,{"$f":"IF('Plan Design Summary'!B63=\"\",\"\",'Plan Design Summary'!B63)","v":""},{"$f":"IF('Plan Design Summary'!C63=\"\",\"\",'Plan Design Summary'!C63)","v":""},{"$f":"IF('Plan Design Summary'!D63=\"\",\"\",'Plan Design Summary'!D63)","v":""},{"$f":"IF('Plan Design Summary'!E63=\"\",\"\",'Plan Design Summary'!E63)","v":""},{"$f":"IF('Plan Design Summary'!F63=\"\",\"\",'Plan Design Summary'!F63)","v":""}]
[null,{"$f":"IF('Plan Design Summary'!B64=\"\",\"\",'Plan Design Summary'!B64)","v":""},{"$f":"IF('Plan Design Summary'!C64=\"\",\"\",'Plan Design Summary'!C64)","v":""},{"$f":"IF('Plan Design Summary'!D64=\"\",\"\",'Plan Design Summary'!D64)","v":""},{"$f":"IF('Plan Design Summary'!E64=\"\",\"\",'Plan Design Summary'!E64)","v":""},{"$f":"IF('Plan Design Summary'!F64=\"\",\"\",'Plan Design Summary'!F64)","v":""}]
[null,{"$f":"IF('Plan Design Summary'!B65=\"\",\"\",'Plan Design Summary'!B65)","v":""},{"$f":"IF('Plan Design Summary'!C65=\"\",\"\",'Plan Design Summary'!C65)","v":""},{"$f":"IF('Plan Design Summary'!D65=\"\",\"\",'Plan Design Summary'!D65)","v":""},{"$f":"IF('Plan Design Summary'!E65=\"\",\"\",'Plan Design Summary'!E65)","v":""},{"$f":"IF('Plan Design Summary'!F65=\"\",\"\",'Plan Design Summary'!F65)","v":""}]
[null,{"$f":"IF('Plan Design Summary'!B66=\"\",\"\",'Plan Design Summary'!B66)","v":""},{"$f":"IF('Plan Design Summary'!C66=\"\",\"\",'Plan Design Summary'!C66)","v":""},{"$f":"IF('Plan Design Summary'!D66=\"\",\"\",'Plan Design Summary'!D66)","v":""},{"$f":"IF('Plan Design Summary'!E66=\"\",\"\",'Plan Design Summary'!E66)","v":""},{"$f":"IF('Plan Design Summary'!F66=\"\",\"\",'Plan Design Summary'!F66)","v":""}]
[null,{"$f":"IF('Plan Design Summary'!B67=\"\",\"\",'Plan Design Summary'!B67)","v":""},{"$f":"IF('Plan Design Summary'!C67=\"\",\"\",'Plan Design Summary'!C67)","v":""},{"$f":"IF('Plan Design Summary'!D67=\"\",\"\",'Plan Design Summary'!D67)","v":""},{"$f":"IF('Plan Design Summary'!E67=\"\",\"\",'Plan Design Summary'!E67)","v":""},{"$f":"IF('Plan Design Summary'!F67=\"\",\"\",'Plan Design Summary'!F67)","v":""}]
[null,{"$f":"IF('Plan Design Summary'!B68=\"\",\"\",'Plan Design Summary'!B68)","v":""},{"$f":"IF('Plan Design Summary'!C68=\"\",\"\",'Plan Design Summary'!C68)","v":""},{"$f":"IF('Plan Design Summary'!D68=\"\",\"\",'Plan Design Summary'!D68)","v":""},{"$f":"IF('Plan Design Summary'!E68=\"\",\"\",'Plan Design Summary'!E68)","v":""},{"$f":"IF('Plan Design Summary'!F68=\"\",\"\",'Plan Design Summary'!F68)","v":""}]
[null,{"$f":"IF('Plan Design Summary'!B69=\"\",\"\",'Plan Design Summary'!B69)","v":""},{"$f":"IF('Plan Design Summary'!C69=\"\",\"\",'Plan Design Summary'!C69)","v":""},{"$f":"IF('Plan Design Summary'!D69=\"\",\"\",'Plan Design Summary'!D69)","v":""},{"$f":"IF('Plan Design Summary'!E69=\"\",\"\",'Plan Design Summary'!E69)","v":""},{"$f":"IF('Plan Design Summary'!F69=\"\",\"\",'Plan Design Summary'!F69)","v":""}]
[null,{"$f":"IF('Plan Design Summary'!B70=\"\",\"\",'Plan Design Summary'!B70)","v":""},{"$f":"IF('Plan Design Summary'!C70=\"\",\"\",'Plan Design Summary'!C70)","v":""},{"$f":"IF('Plan Design Summary'!D70=\"\",\"\",'Plan Design Summary'!D70)","v":""},{"$f":"IF('Plan Design Summary'!E70=\"\",\"\",'Plan Design Summary'!E70)","v":""},{"$f":"IF('Plan Design Summary'!F70=\"\",\"\",'Plan Design Summary'!F70)","v":""}]
[null,{"$f":"IF('Plan Design Summary'!B71=\"\",\"\",'Plan Design Summary'!B71)","v":""},{"$f":"IF('Plan Design Summary'!C71=\"\",\"\",'Plan Design Summary'!C71)","v":""},{"$f":"IF('Plan Design Summary'!D71=\"\",\"\",'Plan Design Summary'!D71)","v":""},{"$f":"IF('Plan Design Summary'!E71=\"\",\"\",'Plan Design Summary'!E71)","v":""},{"$f":"IF('Plan Design Summary'!F71=\"\",\"\",'Plan Design Summary'!F71)","v":""}]
[null,{"$f":"IF('Plan Design Summary'!B72=\"\",\"\",'Plan Design Summary'!B72)","v":""},{"$f":"IF('Plan Design Summary'!C72=\"\",\"\",'Plan Design Summary'!C72)","v":""},{"$f":"IF('Plan Design Summary'!D72=\"\",\"\",'Plan Design Summary'!D72)","v":""},{"$f":"IF('Plan Design Summary'!E72=\"\",\"\",'Plan Design Summary'!E72)","v":""},{"$f":"IF('Plan Design Summary'!F72=\"\",\"\",'Plan Design Summary'!F72)","v":""}]
[null,{"$f":"IF('Plan Design Summary'!B73=\"\",\"\",'Plan Design Summary'!B73)","v":""},{"$f":"IF('Plan Design Summary'!C73=\"\",\"\",'Plan Design Summary'!C73)","v":""},{"$f":"IF('Plan Design Summary'!D73=\"\",\"\",'Plan Design Summary'!D73)","v":""},{"$f":"IF('Plan Design Summary'!E73=\"\",\"\",'Plan Design Summary'!E73)","v":""},{"$f":"IF('Plan Design Summary'!F73=\"\",\"\",'Plan Design Summary'!F73)","v":""}]
[null,{"$f":"IF('Plan Design Summary'!B74=\"\",\"\",'Plan Design Summary'!B74)","v":""},{"$f":"IF('Plan Design Summary'!C74=\"\",\"\",'Plan Design Summary'!C74)","v":""},{"$f":"IF('Plan Design Summary'!D74=\"\",\"\",'Plan Design Summary'!D74)","v":""},{"$f":"IF('Plan Design Summary'!E74=\"\",\"\",'Plan Design Summary'!E74)","v":""},{"$f":"IF('Plan Design Summary'!F74=\"\",\"\",'Plan Design Summary'!F74)","v":""}]
[null,{"$f":"IF('Plan Design Summary'!B75=\"\",\"\",'Plan Design Summary'!B75)","v":""},{"$f":"IF('Plan Design Summary'!C75=\"\",\"\",'Plan Design Summary'!C75)","v":""},{"$f":"IF('Plan Design Summary'!D75=\"\",\"\",'Plan Design Summary'!D75)","v":""},{"$f":"IF('Plan Design Summary'!E75=\"\",\"\",'Plan Design Summary'!E75)","v":""},{"$f":"IF('Plan Design Summary'!F75=\"\",\"\",'Plan Design Summary'!F75)","v":""}]
[null,{"$f":"IF('Plan Design Summary'!B76=\"\",\"\",'Plan Design Summary'!B76)","v":""},{"$f":"IF('Plan Design Summary'!C76=\"\",\"\",'Plan Design Summary'!C76)","v":""},{"$f":"IF('Plan Design Summary'!D76=\"\",\"\",'Plan Design Summary'!D76)","v":""},{"$f":"IF('Plan Design Summary'!E76=\"\",\"\",'Plan Design Summary'!E76)","v":""},{"$f":"IF('Plan Design Summary'!F76=\"\",\"\",'Plan Design Summary'!F76)","v":""}]
[null,{"$f":"IF('Plan Design Summary'!B77=\"\",\"\",'Plan Design Summary'!B77)","v":""},{"$f":"IF('Plan Design Summary'!C77=\"\",\"\",'Plan Design Summary'!C77)","v":""},{"$f":"IF('Plan Design Summary'!D77=\"\",\"\",'Plan Design Summary'!D77)","v":""},{"$f":"IF('Plan Design Summary'!E77=\"\",\"\",'Plan Design Summary'!E77)","v":""},{"$f":"IF('Plan Design Summary'!F77=\"\",\"\",'Plan Design Summary'!F77)","v":""}]
[null,{"$f":"IF('Plan Design Summary'!B78=\"\",\"\",'Plan Design Summary'!B78)","v":""},{"$f":"IF('Plan Design Summary'!C78=\"\",\"\",'Plan Design Summary'!C78)","v":""},{"$f":"IF('Plan Design Summary'!D78=\"\",\"\",'Plan Design Summary'!D78)","v":""},{"$f":"IF('Plan Design Summary'!E78=\"\",\"\",'Plan Design Summary'!E78)","v":""},{"$f":"IF('Plan Design Summary'!F78=\"\",\"\",'Plan Design Summary'!F78)","v":""}]
[null,{"$f":"IF('Plan Design Summary'!B79=\"\",\"\",'Plan Design Summary'!B79)","v":""},{"$f":"IF('Plan Design Summary'!C79=\"\",\"\",'Plan Design Summary'!C79)","v":""},{"$f":"IF('Plan Design Summary'!D79=\"\",\"\",'Plan Design Summary'!D79)","v":""},{"$f":"IF('Plan Design Summary'!E79=\"\",\"\",'Plan Design Summary'!E79)","v":""},{"$f":"IF('Plan Design Summary'!F79=\"\",\"\",'Plan Design Summary'!F79)","v":""}]
[null,{"$f":"IF('Plan Design Summary'!B80=\"\",\"\",'Plan Design Summary'!B80)","v":""},{"$f":"IF('Plan Design Summary'!C80=\"\",\"\",'Plan Design Summary'!C80)","v":""},{"$f":"IF('Plan Design Summary'!D80=\"\",\"\",'Plan Design Summary'!D80)","v":""},{"$f":"IF('Plan Design Summary'!E80=\"\",\"\",'Plan Design Summary'!E80)","v":""},{"$f":"IF('Plan Design Summary'!F80=\"\",\"\",'Plan Design Summary'!F80)","v":""}]
[null,{"$f":"IF('Plan Design Summary'!B81=\"\",\"\",'Plan Design Summary'!B81)","v":""},{"$f":"IF('Plan Design Summary'!C81=\"\",\"\",'Plan Design Summary'!C81)","v":""},{"$f":"IF('Plan Design Summary'!D81=\"\",\"\",'Plan Design Summary'!D81)","v":""},{"$f":"IF('Plan Design Summary'!E81=\"\",\"\",'Plan Design Summary'!E81)","v":""},{"$f":"IF('Plan Design Summary'!F81=\"\",\"\",'Plan Design Summary'!F81)","v":""}]
[null,{"$f":"IF('Plan Design Summary'!B82=\"\",\"\",'Plan Design Summary'!B82)","v":""},{"$f":"IF('Plan Design Summary'!C82=\"\",\"\",'Plan Design Summary'!C82)","v":""},{"$f":"IF('Plan Design Summary'!D82=\"\",\"\",'Plan Design Summary'!D82)","v":""},{"$f":"IF('Plan Design Summary'!E82=\"\",\"\",'Plan Design Summary'!E82)","v":""},{"$f":"IF('Plan Design Summary'!F82=\"\",\"\",'Plan Design Summary'!F82)","v":""}]
[null,{"$f":"IF('Plan Design Summary'!B83=\"\",\"\",'Plan Design Summary'!B83)","v":""},{"$f":"IF('Plan Design Summary'!C83=\"\",\"\",'Plan Design Summary'!C83)","v":""},{"$f":"IF('Plan Design Summary'!D83=\"\",\"\",'Plan Design Summary'!D83)","v":""},{"$f":"IF('Plan Design Summary'!E83=\"\",\"\",'Plan Design Summary'!E83)","v":""},{"$f":"IF('Plan Design Summary'!F83=\"\",\"\",'Plan Design Summary'!F83)","v":""}]
[null,{"$f":"IF('Plan Design Summary'!B84=\"\",\"\",'Plan Design Summary'!B84)","v":""},{"$f":"IF('Plan Design Summary'!C84=\"\",\"\",'Plan Design Summary'!C84)","v":""},{"$f":"IF('Plan Design Summary'!D84=\"\",\"\",'Plan Design Summary'!D84)","v":""},{"$f":"IF('Plan Design Summary'!E84=\"\",\"\",'Plan Design Summary'!E84)","v":""},{"$f":"IF('Plan Design Summary'!F84=\"\",\"\",'Plan Design Summary'!F84)","v":""}]
[null,{"$f":"IF('Plan Design Summary'!B85=\"\",\"\",'Plan Design Summary'!B85)","v":""},{"$f":"IF('Plan Design Summary'!C85=\"\",\"\",'Plan Design Summary'!C85)","v":""},{"$f":"IF('Plan Design Summary'!D85=\"\",\"\",'Plan Design Summary'!D85)","v":""},{"$f":"IF('Plan Design Summary'!E85=\"\",\"\",'Plan Design Summary'!E85)","v":""},{"$f":"IF('Plan Design Summary'!F85=\"\",\"\",'Plan Design Summary'!F85)","v":""}]
[null,{"$f":"IF('Plan Design Summary'!B86=\"\",\"\",'Plan Design Summary'!B86)","v":""},{"$f":"IF('Plan Design Summary'!C86=\"\",\"\",'Plan Design Summary'!C86)","v":""},{"$f":"IF('Plan Design Summary'!D86=\"\",\"\",'Plan Design Summary'!D86)","v":""},{"$f":"IF('Plan Design Summary'!E86=\"\",\"\",'Plan Design Summary'!E86)","v":""},{"$f":"IF('Plan Design Summary'!F86=\"\",\"\",'Plan Design Summary'!F86)","v":""}]
[null,{"$f":"IF('Plan Design Summary'!B87=\"\",\"\",'Plan Design Summary'!B87)","v":""},{"$f":"IF('Plan Design Summary'!C87=\"\",\"\",'Plan Design Summary'!C87)","v":""},{"$f":"IF('Plan Design Summary'!D87=\"\",\"\",'Plan Design Summary'!D87)","v":""},{"$f":"IF('Plan Design Summary'!E87=\"\",\"\",'Plan Design Summary'!E87)","v":""},{"$f":"IF('Plan Design Summary'!F87=\"\",\"\",'Plan Design Summary'!F87)","v":""}]
[null,{"$f":"IF('Plan Design Summary'!B88=\"\",\"\",'Plan Design Summary'!B88)","v":""},{"$f":"IF('Plan Design Summary'!C88=\"\",\"\",'Plan Design Summary'!C88)","v":""},{"$f":"IF('Plan Design Summary'!D88=\"\",\"\",'Plan Design Summary'!D88)","v":""},{"$f":"IF('Plan Design Summary'!E88=\"\",\"\",'Plan Design Summary'!E88)","v":""},{"$f":"IF('Plan Design Summary'!F88=\"\",\"\",'Plan Design Summary'!F88)","v":""}]
[null,{"$f":"IF('Plan Design Summary'!B89=\"\",\"\",'Plan Design Summary'!B89)","v":""},{"$f":"IF('Plan Design Summary'!C89=\"\",\"\",'Plan Design Summary'!C89)","v":""},{"$f":"IF('Plan Design Summary'!D89=\"\",\"\",'Plan Design Summary'!D89)","v":""},{"$f":"IF('Plan Design Summary'!E89=\"\",\"\",'Plan Design Summary'!E89)","v":""},{"$f":"IF('Plan Design Summary'!F89=\"\",\"\",'Plan Design Summary'!F89)","v":""}]
[null,{"$f":"IF('Plan Design Summary'!B90=\"\",\"\",'Plan Design Summary'!B90)","v":""},{"$f":"IF('Plan Design Summary'!C90=\"\",\"\",'Plan Design Summary'!C90)","v":""},{"$f":"IF('Plan Design Summary'!D90=\"\",\"\",'Plan Design Summary'!D90)","v":""},{"$f":"IF('Plan Design Summary'!E90=\"\",\"\",'Plan Design Summary'!E90)","v":""},{"$f":"IF('Plan Design Summary'!F90=\"\",\"\",'Plan Design Summary'!F90)","v":""}]
[null,{"$f":"IF('Plan Design Summary'!B91=\"\",\"\",'Plan Design Summary'!B91)","v":""},{"$f":"IF('Plan Design Summary'!C91=\"\",\"\",'Plan Design Summary'!C91)","v":""},{"$f":"IF('Plan Design Summary'!D91=\"\",\"\",'Plan Design Summary'!D91)","v":""},{"$f":"IF('Plan Design Summary'!E91=\"\",\"\",'Plan Design Summary'!E91)","v":""},{"$f":"IF('Plan Design Summary'!F91=\"\",\"\",'Plan Design Summary'!F91)","v":""}]
[null,{"$f":"IF('Plan Design Summary'!B92=\"\",\"\",'Plan Design Summary'!B92)","v":""},{"$f":"IF('Plan Design Summary'!C92=\"\",\"\",'Plan Design Summary'!C92)","v":""},{"$f":"IF('Plan Design Summary'!D92=\"\",\"\",'Plan Design Summary'!D92)","v":""},{"$f":"IF('Plan Design Summary'!E92=\"\",\"\",'Plan Design Summary'!E92)","v":""},{"$f":"IF('Plan Design Summary'!F92=\"\",\"\",'Plan Design Summary'!F92)","v":""}]
[null,{"$f":"IF('Plan Design Summary'!B93=\"\",\"\",'Plan Design Summary'!B93)","v":""},{"$f":"IF('Plan Design Summary'!C93=\"\",\"\",'Plan Design Summary'!C93)","v":""},{"$f":"IF('Plan Design Summary'!D93=\"\",\"\",'Plan Design Summary'!D93)","v":""},{"$f":"IF('Plan Design Summary'!E93=\"\",\"\",'Plan Design Summary'!E93)","v":""},{"$f":"IF('Plan Design Summary'!F93=\"\",\"\",'Plan Design Summary'!F93)","v":""}]
[null,{"$f":"IF('Plan Design Summary'!B94=\"\",\"\",'Plan Design Summary'!B94)","v":""},{"$f":"IF('Plan Design Summary'!C94=\"\",\"\",'Plan Design Summary'!C94)","v":""},{"$f":"IF('Plan Design Summary'!D94=\"\",\"\",'Plan Design Summary'!D94)","v":""},{"$f":"IF('Plan Design Summary'!E94=\"\",\"\",'Plan Design Summary'!E94)","v":""},{"$f":"IF('Plan Design Summary'!F94=\"\",\"\",'Plan Design Summary'!F94)","v":""}]
[null,{"$f":"IF('Plan Design Summary'!B95=\"\",\"\",'Plan Design Summary'!B95)","v":""},{"$f":"IF('Plan Design Summary'!C95=\"\",\"\",'Plan Design Summary'!C95)","v":""},{"$f":"IF('Plan Design Summary'!D95=\"\",\"\",'Plan Design Summary'!D95)","v":""},{"$f":"IF('Plan Design Summary'!E95=\"\",\"\",'Plan Design Summary'!E95)","v":""},{"$f":"IF('Plan Design Summary'!F95=\"\",\"\",'Plan Design Summary'!F95)","v":""}]
[null,{"$f":"IF('Plan Design Summary'!B96=\"\",\"\",'Plan Design Summary'!B96)","v":""},{"$f":"IF('Plan Design Summary'!C96=\"\",\"\",'Plan Design Summary'!C96)","v":""},{"$f":"IF('Plan Design Summary'!D96=\"\",\"\",'Plan Design Summary'!D96)","v":""},{"$f":"IF('Plan Design Summary'!E96=\"\",\"\",'Plan Design Summary'!E96)","v":""},{"$f":"IF('Plan Design Summary'!F96=\"\",\"\",'Plan Design Summary'!F96)","v":""}]
[null,{"$f":"IF('Plan Design Summary'!B97=\"\",\"\",'Plan Design Summary'!B97)","v":""},{"$f":"IF('Plan Design Summary'!C97=\"\",\"\",'Plan Design Summary'!C97)","v":""},{"$f":"IF('Plan Design Summary'!D97=\"\",\"\",'Plan Design Summary'!D97)","v":""},{"$f":"IF('Plan Design Summary'!E97=\"\",\"\",'Plan Design Summary'!E97)","v":""},{"$f":"IF('Plan Design Summary'!F97=\"\",\"\",'Plan Design Summary'!F97)","v":""}]
[null,{"$f":"IF('Plan Design Summary'!B98=\"\",\"\",'Plan Design Summary'!B98)","v":""},{"$f":"IF('Plan Design Summary'!C98=\"\",\"\",'Plan Design Summary'!C98)","v":""},{"$f":"IF('Plan Design Summary'!D98=\"\",\"\",'Plan Design Summary'!D98)","v":""},{"$f":"IF('Plan Design Summary'!E98=\"\",\"\",'Plan Design Summary'!E98)","v":""},{"$f":"IF('Plan Design Summary'!F98=\"\",\"\",'Plan Design Summary'!F98)","v":""}]
[null,{"$f":"IF('Plan Design Summary'!B99=\"\",\"\",'Plan Design Summary'!B99)","v":""},{"$f":"IF('Plan Design Summary'!C99=\"\",\"\",'Plan Design Summary'!C99)","v":""},{"$f":"IF('Plan Design Summary'!D99=\"\",\"\",'Plan Design Summary'!D99)","v":""},{"$f":"IF('Plan Design Summary'!E99=\"\",\"\",'Plan Design Summary'!E99)","v":""},{"$f":"IF('Plan Design Summary'!F99=\"\",\"\",'Plan Design Summary'!F99)","v":""}]
[null,{"$f":"IF('Plan Design Summary'!B100=\"\",\"\",'Plan Design Summary'!B100)","v":""},{"$f":"IF('Plan Design Summary'!C100=\"\",\"\",'Plan Design Summary'!C100)","v":""},{"$f":"IF('Plan Design Summary'!D100=\"\",\"\",'Plan Design Summary'!D100)","v":""},{"$f":"IF('Plan Design Summary'!E100=\"\",\"\",'Plan Design Summary'!E100)","v":""},{"$f":"IF('Plan Design Summary'!F100=\"\",\"\",'Plan Design Summary'!F100)","v":""}]
[null,{"$f":"IF('Plan Design Summary'!B101=\"\",\"\",'Plan Design Summary'!B101)","v":""},{"$f":"IF('Plan Design Summary'!C101=\"\",\"\",'Plan Design Summary'!C101)","v":""},{"$f":"IF('Plan Design Summary'!D101=\"\",\"\",'Plan Design Summary'!D101)","v":""},{"$f":"IF('Plan Design Summary'!E101=\"\",\"\",'Plan Design Summary'!E101)","v":""},{"$f":"IF('Plan Design Summary'!F101=\"\",\"\",'Plan Design Summary'!F101)","v":""}]
[null,{"$f":"IF('Plan Design Summary'!B102=\"\",\"\",'Plan Design Summary'!B102)","v":""},{"$f":"IF('Plan Design Summary'!C102=\"\",\"\",'Plan Design Summary'!C102)","v":""},{"$f":"IF('Plan Design Summary'!D102=\"\",\"\",'Plan Design Summary'!D102)","v":""},{"$f":"IF('Plan Design Summary'!E102=\"\",\"\",'Plan Design Summary'!E102)","v":""},{"$f":"IF('Plan Design Summary'!F102=\"\",\"\",'Plan Design Summary'!F102)","v":""}]
[null,{"$f":"IF('Plan Design Summary'!B103=\"\",\"\",'Plan Design Summary'!B103)","v":""},{"$f":"IF('Plan Design Summary'!C103=\"\",\"\",'Plan Design Summary'!C103)","v":""},{"$f":"IF('Plan Design Summary'!D103=\"\",\"\",'Plan Design Summary'!D103)","v":""},{"$f":"IF('Plan Design Summary'!E103=\"\",\"\",'Plan Design Summary'!E103)","v":""},{"$f":"IF('Plan Design Summary'!F103=\"\",\"\",'Plan Design Summary'!F103)","v":""}]
[null,{"$f":"IF('Plan Design Summary'!B104=\"\",\"\",'Plan Design Summary'!B104)","v":""},{"$f":"IF('Plan Design Summary'!C104=\"\",\"\",'Plan Design Summary'!C104)","v":""},{"$f":"IF('Plan Design Summary'!D104=\"\",\"\",'Plan Design Summary'!D104)","v":""},{"$f":"IF('Plan Design Summary'!E104=\"\",\"\",'Plan Design Summary'!E104)","v":""},{"$f":"IF('Plan Design Summary'!F104=\"\",\"\",'Plan Design Summary'!F104)","v":""}]
[null,{"$f":"IF('Plan Design Summary'!B105=\"\",\"\",'Plan Design Summary'!B105)","v":""},{"$f":"IF('Plan Design Summary'!C105=\"\",\"\",'Plan Design Summary'!C105)","v":""},{"$f":"IF('Plan Design Summary'!D105=\"\",\"\",'Plan Design Summary'!D105)","v":""},{"$f":"IF('Plan Design Summary'!E105=\"\",\"\",'Plan Design Summary'!E105)","v":""},{"$f":"IF('Plan Design Summary'!F105=\"\",\"\",'Plan Design Summary'!F105)","v":""}]
[null,{"$f":"IF('Plan Design Summary'!B106=\"\",\"\",'Plan Design Summary'!B106)","v":""},{"$f":"IF('Plan Design Summary'!C106=\"\",\"\",'Plan Design Summary'!C106)","v":""},{"$f":"IF('Plan Design Summary'!D106=\"\",\"\",'Plan Design Summary'!D106)","v":""},{"$f":"IF('Plan Design Summary'!E106=\"\",\"\",'Plan Design Summary'!E106)","v":""},{"$f":"IF('Plan Design Summary'!F106=\"\",\"\",'Plan Design Summary'!F106)","v":""}]
[null,{"$f":"IF('Plan Design Summary'!B107=\"\",\"\",'Plan Design Summary'!B107)","v":""},{"$f":"IF('Plan Design Summary'!C107=\"\",\"\",'Plan Design Summary'!C107)","v":""},{"$f":"IF('Plan Design Summary'!D107=\"\",\"\",'Plan Design Summary'!D107)","v":""},{"$f":"IF('Plan Design Summary'!E107=\"\",\"\",'Plan Design Summary'!E107)","v":""},{"$f":"IF('Plan Design Summary'!F107=\"\",\"\",'Plan Design Summary'!F107)","v":""}]
[null,{"$f":"IF('Plan Design Summary'!B108=\"\",\"\",'Plan Design Summary'!B108)","v":""},{"$f":"IF('Plan Design Summary'!C108=\"\",\"\",'Plan Design Summary'!C108)","v":""},{"$f":"IF('Plan Design Summary'!D108=\"\",\"\",'Plan Design Summary'!D108)","v":""},{"$f":"IF('Plan Design Summary'!E108=\"\",\"\",'Plan Design Summary'!E108)","v":""},{"$f":"IF('Plan Design Summary'!F108=\"\",\"\",'Plan Design Summary'!F108)","v":""}]
[null,{"$f":"IF('Plan Design Summary'!B109=\"\",\"\",'Plan Design Summary'!B109)","v":""},{"$f":"IF('Plan Design Summary'!C109=\"\",\"\",'Plan Design Summary'!C109)","v":""},{"$f":"IF('Plan Design Summary'!D109=\"\",\"\",'Plan Design Summary'!D109)","v":""},{"$f":"IF('Plan Design Summary'!E109=\"\",\"\",'Plan Design Summary'!E109)","v":""},{"$f":"IF('Plan Design Summary'!F109=\"\",\"\",'Plan Design Summary'!F109)","v":""}]
[null,{"$f":"IF('Plan Design Summary'!B110=\"\",\"\",'Plan Design Summary'!B110)","v":""},{"$f":"IF('Plan Design Summary'!C110=\"\",\"\",'Plan Design Summary'!C110)","v":""},{"$f":"IF('Plan Design Summary'!D110=\"\",\"\",'Plan Design Summary'!D110)","v":""},{"$f":"IF('Plan Design Summary'!E110=\"\",\"\",'Plan Design Summary'!E110)","v":""},{"$f":"IF('Plan Design Summary'!F110=\"\",\"\",'Plan Design Summary'!F110)","v":""}]
[null,{"$f":"IF('Plan Design Summary'!B111=\"\",\"\",'Plan Design Summary'!B111)","v":""},{"$f":"IF('Plan Design Summary'!C111=\"\",\"\",'Plan Design Summary'!C111)","v":""},{"$f":"IF('Plan Design Summary'!D111=\"\",\"\",'Plan Design Summary'!D111)","v":""},{"$f":"IF('Plan Design Summary'!E111=\"\",\"\",'Plan Design Summary'!E111)","v":""},{"$f":"IF('Plan Design Summary'!F111=\"\",\"\",'Plan Design Summary'!F111)","v":""}]
[null,{"$f":"IF('Plan Design Summary'!B112=\"\",\"\",'Plan Design Summary'!B112)","v":""},{"$f":"IF('Plan Design Summary'!C112=\"\",\"\",'Plan Design Summary'!C112)","v":""},{"$f":"IF('Plan Design Summary'!D112=\"\",\"\",'Plan Design Summary'!D112)","v":""},{"$f":"IF('Plan Design Summary'!E112=\"\",\"\",'Plan Design Summary'!E112)","v":""},{"$f":"IF('Plan Design Summary'!F112=\"\",\"\",'Plan Design Summary'!F112)","v":""}]
[null,{"$f":"IF('Plan Design Summary'!B113=\"\",\"\",'Plan Design Summary'!B113)","v":""},{"$f":"IF('Plan Design Summary'!C113=\"\",\"\",'Plan Design Summary'!C113)","v":""},{"$f":"IF('Plan Design Summary'!D113=\"\",\"\",'Plan Design Summary'!D113)","v":""},{"$f":"IF('Plan Design Summary'!E113=\"\",\"\",'Plan Design Summary'!E113)","v":""},{"$f":"IF('Plan Design Summary'!F113=\"\",\"\",'Plan Design Summary'!F113)","v":""}]
[null,{"$f":"IF('Plan Design Summary'!B114=\"\",\"\",'Plan Design Summary'!B114)","v":""},{"$f":"IF('Plan Design Summary'!C114=\"\",\"\",'Plan Design Summary'!C114)","v":""},{"$f":"IF('Plan Design Summary'!D114=\"\",\"\",'Plan Design Summary'!D114)","v":""},{"$f":"IF('Plan Design Summary'!E114=\"\",\"\",'Plan Design Summary'!E114)","v":""},{"$f":"IF('Plan Design Summary'!F114=\"\",\"\",'Plan Design Summary'!F114)","v":""}]
[null,{"$f":"IF('Plan Design Summary'!B115=\"\",\"\",'Plan Design Summary'!B115)","v":""},{"$f":"IF('Plan Design Summary'!C115=\"\",\"\",'Plan Design Summary'!C115)","v":""},{"$f":"IF('Plan Design Summary'!D115=\"\",\"\",'Plan Design Summary'!D115)","v":""},{"$f":"IF('Plan Design Summary'!E115=\"\",\"\",'Plan Design Summary'!E115)","v":""},{"$f":"IF('Plan Design Summary'!F115=\"\",\"\",'Plan Design Summary'!F115)","v":""}]
[null,{"$f":"IF('Plan Design Summary'!B116=\"\",\"\",'Plan Design Summary'!B116)","v":""},{"$f":"IF('Plan Design Summary'!C116=\"\",\"\",'Plan Design Summary'!C116)","v":""},{"$f":"IF('Plan Design Summary'!D116=\"\",\"\",'Plan Design Summary'!D116)","v":""},{"$f":"IF('Plan Design Summary'!E116=\"\",\"\",'Plan Design Summary'!E116)","v":""},{"$f":"IF('Plan Design Summary'!F116=\"\",\"\",'Plan Design Summary'!F116)","v":""}]
[null,{"$f":"IF('Plan Design Summary'!B117=\"\",\"\",'Plan Design Summary'!B117)","v":""},{"$f":"IF('Plan Design Summary'!C117=\"\",\"\",'Plan Design Summary'!C117)","v":""},{"$f":"IF('Plan Design Summary'!D117=\"\",\"\",'Plan Design Summary'!D117)","v":""},{"$f":"IF('Plan Design Summary'!E117=\"\",\"\",'Plan Design Summary'!E117)","v":""},{"$f":"IF('Plan Design Summary'!F117=\"\",\"\",'Plan Design Summary'!F117)","v":""}]
[null,{"$f":"IF('Plan Design Summary'!B118=\"\",\"\",'Plan Design Summary'!B118)","v":""},{"$f":"IF('Plan Design Summary'!C118=\"\",\"\",'Plan Design Summary'!C118)","v":""},{"$f":"IF('Plan Design Summary'!D118=\"\",\"\",'Plan Design Summary'!D118)","v":""},{"$f":"IF('Plan Design Summary'!E118=\"\",\"\",'Plan Design Summary'!E118)","v":""},{"$f":"IF('Plan Design Summary'!F118=\"\",\"\",'Plan Design Summary'!F118)","v":""}]
[null,{"$f":"IF('Plan Design Summary'!B119=\"\",\"\",'Plan Design Summary'!B119)","v":""},{"$f":"IF('Plan Design Summary'!C119=\"\",\"\",'Plan Design Summary'!C119)","v":""},{"$f":"IF('Plan Design Summary'!D119=\"\",\"\",'Plan Design Summary'!D119)","v":""},{"$f":"IF('Plan Design Summary'!E119=\"\",\"\",'Plan Design Summary'!E119)","v":""},{"$f":"IF('Plan Design Summary'!F119=\"\",\"\",'Plan Design Summary'!F119)","v":""}]
[null,{"$f":"IF('Plan Design Summary'!B120=\"\",\"\",'Plan Design Summary'!B120)","v":""},{"$f":"IF('Plan Design Summary'!C120=\"\",\"\",'Plan Design Summary'!C120)","v":""},{"$f":"IF('Plan Design Summary'!D120=\"\",\"\",'Plan Design Summary'!D120)","v":""},{"$f":"IF('Plan Design Summary'!E120=\"\",\"\",'Plan Design Summary'!E120)","v":""},{"$f":"IF('Plan Design Summary'!F120=\"\",\"\",'Plan Design Summary'!F120)","v":""}]
[null,{"$f":"IF('Plan Design Summary'!B121=\"\",\"\",'Plan Design Summary'!B121)","v":""},{"$f":"IF('Plan Design Summary'!C121=\"\",\"\",'Plan Design Summary'!C121)","v":""},{"$f":"IF('Plan Design Summary'!D121=\"\",\"\",'Plan Design Summary'!D121)","v":""},{"$f":"IF('Plan Design Summary'!E121=\"\",\"\",'Plan Design Summary'!E121)","v":""},{"$f":"IF('Plan Design Summary'!F121=\"\",\"\",'Plan Design Summary'!F121)","v":""}]
[null,{"$f":"IF('Plan Design Summary'!B122=\"\",\"\",'Plan Design Summary'!B122)","v":""},{"$f":"IF('Plan Design Summary'!C122=\"\",\"\",'Plan Design Summary'!C122)","v":""},{"$f":"IF('Plan Design Summary'!D122=\"\",\"\",'Plan Design Summary'!D122)","v":""},{"$f":"IF('Plan Design Summary'!E122=\"\",\"\",'Plan Design Summary'!E122)","v":""},{"$f":"IF('Plan Design Summary'!F122=\"\",\"\",'Plan Design Summary'!F122)","v":""}]
[null,{"$f":"IF('Plan Design Summary'!B123=\"\",\"\",'Plan Design Summary'!B123)","v":""},{"$f":"IF('Plan Design Summary'!C123=\"\",\"\",'Plan Design Summary'!C123)","v":""},{"$f":"IF('Plan Design Summary'!D123=\"\",\"\",'Plan Design Summary'!D123)","v":""},{"$f":"IF('Plan Design Summary'!E123=\"\",\"\",'Plan Design Summary'!E123)","v":""},{"$f":"IF('Plan Design Summary'!F123=\"\",\"\",'Plan Design Summary'!F123)","v":""}]
[null,{"$f":"IF('Plan Design Summary'!B124=\"\",\"\",'Plan Design Summary'!B124)","v":""},{"$f":"IF('Plan Design Summary'!C124=\"\",\"\",'Plan Design Summary'!C124)","v":""},{"$f":"IF('Plan Design Summary'!D124=\"\",\"\",'Plan Design Summary'!D124)","v":""},{"$f":"IF('Plan Design Summary'!E124=\"\",\"\",'Plan Design Summary'!E124)","v":""},{"$f":"IF('Plan Design Summary'!F124=\"\",\"\",'Plan Design Summary'!F124)","v":""}]
[null,{"$f":"IF('Plan Design Summary'!B125=\"\",\"\",'Plan Design Summary'!B125)","v":""},{"$f":"IF('Plan Design Summary'!C125=\"\",\"\",'Plan Design Summary'!C125)","v":""},{"$f":"IF('Plan Design Summary'!D125=\"\",\"\",'Plan Design Summary'!D125)","v":""},{"$f":"IF('Plan Design Summary'!E125=\"\",\"\",'Plan Design Summary'!E125)","v":""},{"$f":"IF('Plan Design Summary'!F125=\"\",\"\",'Plan Design Summary'!F125)","v":""}]
[null,{"$f":"IF('Plan Design Summary'!B126=\"\",\"\",'Plan Design Summary'!B126)","v":""},{"$f":"IF('Plan Design Summary'!C126=\"\",\"\",'Plan Design Summary'!C126)","v":""},{"$f":"IF('Plan Design Summary'!D126=\"\",\"\",'Plan Design Summary'!D126)","v":""},{"$f":"IF('Plan Design Summary'!E126=\"\",\"\",'Plan Design Summary'!E126)","v":""},{"$f":"IF('Plan Design Summary'!F126=\"\",\"\",'Plan Design Summary'!F126)","v":""}]
[null,{"$f":"IF('Plan Design Summary'!B127=\"\",\"\",'Plan Design Summary'!B127)","v":""},{"$f":"IF('Plan Design Summary'!C127=\"\",\"\",'Plan Design Summary'!C127)","v":""},{"$f":"IF('Plan Design Summary'!D127=\"\",\"\",'Plan Design Summary'!D127)","v":""},{"$f":"IF('Plan Design Summary'!E127=\"\",\"\",'Plan Design Summary'!E127)","v":""},{"$f":"IF('Plan Design Summary'!F127=\"\",\"\",'Plan Design Summary'!F127)","v":""}]
[null,{"$f":"IF('Plan Design Summary'!B128=\"\",\"\",'Plan Design Summary'!B128)","v":""},{"$f":"IF('Plan Design Summary'!C128=\"\",\"\",'Plan Design Summary'!C128)","v":""},{"$f":"IF('Plan Design Summary'!D128=\"\",\"\",'Plan Design Summary'!D128)","v":""},{"$f":"IF('Plan Design Summary'!E128=\"\",\"\",'Plan Design Summary'!E128)","v":""},{"$f":"IF('Plan Design Summary'!F128=\"\",\"\",'Plan Design Summary'!F128)","v":""}]
[null,{"$f":"IF('Plan Design Summary'!B129=\"\",\"\",'Plan Design Summary'!B129)","v":""},{"$f":"IF('Plan Design Summary'!C129=\"\",\"\",'Plan Design Summary'!C129)","v":""},{"$f":"IF('Plan Design Summary'!D129=\"\",\"\",'Plan Design Summary'!D129)","v":""},{"$f":"IF('Plan Design Summary'!E129=\"\",\"\",'Plan Design Summary'!E129)","v":""},{"$f":"IF('Plan Design Summary'!F129=\"\",\"\",'Plan Design Summary'!F129)","v":""}]
[null,{"$f":"IF('Plan Design Summary'!B130=\"\",\"\",'Plan Design Summary'!B130)","v":""},{"$f":"IF('Plan Design Summary'!C130=\"\",\"\",'Plan Design Summary'!C130)","v":""},{"$f":"IF('Plan Design Summary'!D130=\"\",\"\",'Plan Design Summary'!D130)","v":""},{"$f":"IF('Plan Design Summary'!E130=\"\",\"\",'Plan Design Summary'!E130)","v":""},{"$f":"IF('Plan Design Summary'!F130=\"\",\"\",'Plan Design Summary'!F130)","v":""}]
[null,{"$f":"IF('Plan Design Summary'!B131=\"\",\"\",'Plan Design Summary'!B131)","v":""},{"$f":"IF('Plan Design Summary'!C131=\"\",\"\",'Plan Design Summary'!C131)","v":""},{"$f":"IF('Plan Design Summary'!D131=\"\",\"\",'Plan Design Summary'!D131)","v":""},{"$f":"IF('Plan Design Summary'!E131=\"\",\"\",'Plan Design Summary'!E131)","v":""},{"$f":"IF('Plan Design Summary'!F131=\"\",\"\",'Plan Design Summary'!F131)","v":""}]
[null,{"$f":"IF('Plan Design Summary'!B132=\"\",\"\",'Plan Design Summary'!B132)","v":""},{"$f":"IF('Plan Design Summary'!C132=\"\",\"\",'Plan Design Summary'!C132)","v":""},{"$f":"IF('Plan Design Summary'!D132=\"\",\"\",'Plan Design Summary'!D132)","v":""},{"$f":"IF('Plan Design Summary'!E132=\"\",\"\",'Plan Design Summary'!E132)","v":""},{"$f":"IF('Plan Design Summary'!F132=\"\",\"\",'Plan Design Summary'!F132)","v":""}]
[null,{"$f":"IF('Plan Design Summary'!B133=\"\",\"\",'Plan Design Summary'!B133)","v":""},{"$f":"IF('Plan Design Summary'!C133=\"\",\"\",'Plan Design Summary'!C133)","v":""},{"$f":"IF('Plan Design Summary'!D133=\"\",\"\",'Plan Design Summary'!D133)","v":""},{"$f":"IF('Plan Design Summary'!E133=\"\",\"\",'Plan Design Summary'!E133)","v":""},{"$f":"IF('Plan Design Summary'!F133=\"\",\"\",'Plan Design Summary'!F133)","v":""}]
[null,{"$f":"IF('Plan Design Summary'!B134=\"\",\"\",'Plan Design Summary'!B134)","v":""},{"$f":"IF('Plan Design Summary'!C134=\"\",\"\",'Plan Design Summary'!C134)","v":""},{"$f":"IF('Plan Design Summary'!D134=\"\",\"\",'Plan Design Summary'!D134)","v":""},{"$f":"IF('Plan Design Summary'!E134=\"\",\"\",'Plan Design Summary'!E134)","v":""},{"$f":"IF('Plan Design Summary'!F134=\"\",\"\",'Plan Design Summary'!F134)","v":""}]
[null,{"$f":"IF('Plan Design Summary'!B135=\"\",\"\",'Plan Design Summary'!B135)","v":""},{"$f":"IF('Plan Design Summary'!C135=\"\",\"\",'Plan Design Summary'!C135)","v":""},{"$f":"IF('Plan Design Summary'!D135=\"\",\"\",'Plan Design Summary'!D135)","v":""},{"$f":"IF('Plan Design Summary'!E135=\"\",\"\",'Plan Design Summary'!E135)","v":""},{"$f":"IF('Plan Design Summary'!F135=\"\",\"\",'Plan Design Summary'!F135)","v":""}]
[null,{"$f":"IF('Plan Design Summary'!B136=\"\",\"\",'Plan Design Summary'!B136)","v":""},{"$f":"IF('Plan Design Summary'!C136=\"\",\"\",'Plan Design Summary'!C136)","v":""},{"$f":"IF('Plan Design Summary'!D136=\"\",\"\",'Plan Design Summary'!D136)","v":""},{"$f":"IF('Plan Design Summary'!E136=\"\",\"\",'Plan Design Summary'!E136)","v":""},{"$f":"IF('Plan Design Summary'!F136=\"\",\"\",'Plan Design Summary'!F136)","v":""}]
[null,{"$f":"IF('Plan Design Summary'!B137=\"\",\"\",'Plan Design Summary'!B137)","v":""},{"$f":"IF('Plan Design Summary'!C137=\"\",\"\",'Plan Design Summary'!C137)","v":""},{"$f":"IF('Plan Design Summary'!D137=\"\",\"\",'Plan Design Summary'!D137)","v":""},{"$f":"IF('Plan Design Summary'!E137=\"\",\"\",'Plan Design Summary'!E137)","v":""},{"$f":"IF('Plan Design Summary'!F137=\"\",\"\",'Plan Design Summary'!F137)","v":""}]
[null,{"$f":"IF('Plan Design Summary'!B138=\"\",\"\",'Plan Design Summary'!B138)","v":""},{"$f":"IF('Plan Design Summary'!C138=\"\",\"\",'Plan Design Summary'!C138)","v":""},{"$f":"IF('Plan Design Summary'!D138=\"\",\"\",'Plan Design Summary'!D138)","v":""},{"$f":"IF('Plan Design Summary'!E138=\"\",\"\",'Plan Design Summary'!E138)","v":""},{"$f":"IF('Plan Design Summary'!F138=\"\",\"\",'Plan Design Summary'!F138)","v":""}]
[null,{"$f":"IF('Plan Design Summary'!B139=\"\",\"\",'Plan Design Summary'!B139)","v":""},{"$f":"IF('Plan Design Summary'!C139=\"\",\"\",'Plan Design Summary'!C139)","v":""},{"$f":"IF('Plan Design Summary'!D139=\"\",\"\",'Plan Design Summary'!D139)","v":""},{"$f":"IF('Plan Design Summary'!E139=\"\",\"\",'Plan Design Summary'!E139)","v":""},{"$f":"IF('Plan Design Summary'!F139=\"\",\"\",'Plan Design Summary'!F139)","v":""}]
[null,{"$f":"IF('Plan Design Summary'!B140=\"\",\"\",'Plan Design Summary'!B140)","v":""},{"$f":"IF('Plan Design Summary'!C140=\"\",\"\",'Plan Design Summary'!C140)","v":""},{"$f":"IF('Plan Design Summary'!D140=\"\",\"\",'Plan Design Summary'!D140)","v":""},{"$f":"IF('Plan Design Summary'!E140=\"\",\"\",'Plan Design Summary'!E140)","v":""},{"$f":"IF('Plan Design Summary'!F140=\"\",\"\",'Plan Design Summary'!F140)","v":""}]
[null,{"$f":"IF('Plan Design Summary'!B141=\"\",\"\",'Plan Design Summary'!B141)","v":""},{"$f":"IF('Plan Design Summary'!C141=\"\",\"\",'Plan Design Summary'!C141)","v":""},{"$f":"IF('Plan Design Summary'!D141=\"\",\"\",'Plan Design Summary'!D141)","v":""},{"$f":"IF('Plan Design Summary'!E141=\"\",\"\",'Plan Design Summary'!E141)","v":""},{"$f":"IF('Plan Design Summary'!F141=\"\",\"\",'Plan Design Summary'!F141)","v":""}]
[null,{"$f":"IF('Plan Design Summary'!B142=\"\",\"\",'Plan Design Summary'!B142)","v":""},{"$f":"IF('Plan Design Summary'!C142=\"\",\"\",'Plan Design Summary'!C142)","v":""},{"$f":"IF('Plan Design Summary'!D142=\"\",\"\",'Plan Design Summary'!D142)","v":""},{"$f":"IF('Plan Design Summary'!E142=\"\",\"\",'Plan Design Summary'!E142)","v":""},{"$f":"IF('Plan Design Summary'!F142=\"\",\"\",'Plan Design Summary'!F142)","v":""}]
[null,{"$f":"IF('Plan Design Summary'!B143=\"\",\"\",'Plan Design Summary'!B143)","v":""},{"$f":"IF('Plan Design Summary'!C143=\"\",\"\",'Plan Design Summary'!C143)","v":""},{"$f":"IF('Plan Design Summary'!D143=\"\",\"\",'Plan Design Summary'!D143)","v":""},{"$f":"IF('Plan Design Summary'!E143=\"\",\"\",'Plan Design Summary'!E143)","v":""},{"$f":"IF('Plan Design Summary'!F143=\"\",\"\",'Plan Design Summary'!F143)","v":""}]
[null,{"$f":"IF('Plan Design Summary'!B144=\"\",\"\",'Plan Design Summary'!B144)","v":""},{"$f":"IF('Plan Design Summary'!C144=\"\",\"\",'Plan Design Summary'!C144)","v":""},{"$f":"IF('Plan Design Summary'!D144=\"\",\"\",'Plan Design Summary'!D144)","v":""},{"$f":"IF('Plan Design Summary'!E144=\"\",\"\",'Plan Design Summary'!E144)","v":""},{"$f":"IF('Plan Design Summary'!F144=\"\",\"\",'Plan Design Summary'!F144)","v":""}]
[null,{"$f":"IF('Plan Design Summary'!B145=\"\",\"\",'Plan Design Summary'!B145)","v":""},{"$f":"IF('Plan Design Summary'!C145=\"\",\"\",'Plan Design Summary'!C145)","v":""},{"$f":"IF('Plan Design Summary'!D145=\"\",\"\",'Plan Design Summary'!D145)","v":""},{"$f":"IF('Plan Design Summary'!E145=\"\",\"\",'Plan Design Summary'!E145)","v":""},{"$f":"IF('Plan Design Summary'!F145=\"\",\"\",'Plan Design Summary'!F145)","v":""}]
[null,{"$f":"IF('Plan Design Summary'!B146=\"\",\"\",'Plan Design Summary'!B146)","v":""},{"$f":"IF('Plan Design Summary'!C146=\"\",\"\",'Plan Design Summary'!C146)","v":""},{"$f":"IF('Plan Design Summary'!D146=\"\",\"\",'Plan Design Summary'!D146)","v":""},{"$f":"IF('Plan Design Summary'!E146=\"\",\"\",'Plan Design Summary'!E146)","v":""},{"$f":"IF('Plan Design Summary'!F146=\"\",\"\",'Plan Design Summary'!F146)","v":""}]
[null,{"$f":"IF('Plan Design Summary'!B147=\"\",\"\",'Plan Design Summary'!B147)","v":""},{"$f":"IF('Plan Design Summary'!C147=\"\",\"\",'Plan Design Summary'!C147)","v":""},{"$f":"IF('Plan Design Summary'!D147=\"\",\"\",'Plan Design Summary'!D147)","v":""},{"$f":"IF('Plan Design Summary'!E147=\"\",\"\",'Plan Design Summary'!E147)","v":""},{"$f":"IF('Plan Design Summary'!F147=\"\",\"\",'Plan Design Summary'!F147)","v":""}]
[null,{"$f":"IF('Plan Design Summary'!B148=\"\",\"\",'Plan Design Summary'!B148)","v":""},{"$f":"IF('Plan Design Summary'!C148=\"\",\"\",'Plan Design Summary'!C148)","v":""},{"$f":"IF('Plan Design Summary'!D148=\"\",\"\",'Plan Design Summary'!D148)","v":""},{"$f":"IF('Plan Design Summary'!E148=\"\",\"\",'Plan Design Summary'!E148)","v":""},{"$f":"IF('Plan Design Summary'!F148=\"\",\"\",'Plan Design Summary'!F148)","v":""}]
[null,{"$f":"IF('Plan Design Summary'!B149=\"\",\"\",'Plan Design Summary'!B149)","v":""},{"$f":"IF('Plan Design Summary'!C149=\"\",\"\",'Plan Design Summary'!C149)","v":""},{"$f":"IF('Plan Design Summary'!D149=\"\",\"\",'Plan Design Summary'!D149)","v":""},{"$f":"IF('Plan Design Summary'!E149=\"\",\"\",'Plan Design Summary'!E149)","v":""},{"$f":"IF('Plan Design Summary'!F149=\"\",\"\",'Plan Design Summary'!F149)","v":""}]
[null,{"$f":"IF('Plan Design Summary'!B150=\"\",\"\",'Plan Design Summary'!B150)","v":""},{"$f":"IF('Plan Design Summary'!C150=\"\",\"\",'Plan Design Summary'!C150)","v":""},{"$f":"IF('Plan Design Summary'!D150=\"\",\"\",'Plan Design Summary'!D150)","v":""},{"$f":"IF('Plan Design Summary'!E150=\"\",\"\",'Plan Design Summary'!E150)","v":""},{"$f":"IF('Plan Design Summary'!F150=\"\",\"\",'Plan Design Summary'!F150)","v":""}]
[null,{"$f":"IF('Plan Design Summary'!B151=\"\",\"\",'Plan Design Summary'!B151)","v":""},{"$f":"IF('Plan Design Summary'!C151=\"\",\"\",'Plan Design Summary'!C151)","v":""},{"$f":"IF('Plan Design Summary'!D151=\"\",\"\",'Plan Design Summary'!D151)","v":""},{"$f":"IF('Plan Design Summary'!E151=\"\",\"\",'Plan Design Summary'!E151)","v":""},{"$f":"IF('Plan Design Summary'!F151=\"\",\"\",'Plan Design Summary'!F151)","v":""}]
[null,{"$f":"IF('Plan Design Summary'!B152=\"\",\"\",'Plan Design Summary'!B152)","v":""},{"$f":"IF('Plan Design Summary'!C152=\"\",\"\",'Plan Design Summary'!C152)","v":""},{"$f":"IF('Plan Design Summary'!D152=\"\",\"\",'Plan Design Summary'!D152)","v":""},{"$f":"IF('Plan Design Summary'!E152=\"\",\"\",'Plan Design Summary'!E152)","v":""},{"$f":"IF('Plan Design Summary'!F152=\"\",\"\",'Plan Design Summary'!F152)","v":""}]
[null,{"$f":"IF('Plan Design Summary'!B153=\"\",\"\",'Plan Design Summary'!B153)","v":""},{"$f":"IF('Plan Design Summary'!C153=\"\",\"\",'Plan Design Summary'!C153)","v":""},{"$f":"IF('Plan Design Summary'!D153=\"\",\"\",'Plan Design Summary'!D153)","v":""},{"$f":"IF('Plan Design Summary'!E153=\"\",\"\",'Plan Design Summary'!E153)","v":""},{"$f":"IF('Plan Design Summary'!F153=\"\",\"\",'Plan Design Summary'!F153)","v":""}]
[null,{"$f":"IF('Plan Design Summary'!B154=\"\",\"\",'Plan Design Summary'!B154)","v":""},{"$f":"IF('Plan Design Summary'!C154=\"\",\"\",'Plan Design Summary'!C154)","v":""},{"$f":"IF('Plan Design Summary'!D154=\"\",\"\",'Plan Design Summary'!D154)","v":""},{"$f":"IF('Plan Design Summary'!E154=\"\",\"\",'Plan Design Summary'!E154)","v":""},{"$f":"IF('Plan Design Summary'!F154=\"\",\"\",'Plan Design Summary'!F154)","v":""}]
[null,{"$f":"IF('Plan Design Summary'!B155=\"\",\"\",'Plan Design Summary'!B155)","v":""},{"$f":"IF('Plan Design Summary'!C155=\"\",\"\",'Plan Design Summary'!C155)","v":""},{"$f":"IF('Plan Design Summary'!D155=\"\",\"\",'Plan Design Summary'!D155)","v":""},{"$f":"IF('Plan Design Summary'!E155=\"\",\"\",'Plan Design Summary'!E155)","v":""},{"$f":"IF('Plan Design Summary'!F155=\"\",\"\",'Plan Design Summary'!F155)","v":""}]
[null,{"$f":"IF('Plan Design Summary'!B156=\"\",\"\",'Plan Design Summary'!B156)","v":""},{"$f":"IF('Plan Design Summary'!C156=\"\",\"\",'Plan Design Summary'!C156)","v":""},{"$f":"IF('Plan Design Summary'!D156=\"\",\"\",'Plan Design Summary'!D156)","v":""},{"$f":"IF('Plan Design Summary'!E156=\"\",\"\",'Plan Design Summary'!E156)","v":""},{"$f":"IF('Plan Design Summary'!F156=\"\",\"\",'Plan Design Summary'!F156)","v":""}]
[null,{"$f":"IF('Plan Design Summary'!B157=\"\",\"\",'Plan Design Summary'!B157)","v":""},{"$f":"IF('Plan Design Summary'!C157=\"\",\"\",'Plan Design Summary'!C157)","v":""},{"$f":"IF('Plan Design Summary'!D157=\"\",\"\",'Plan Design Summary'!D157)","v":""},{"$f":"IF('Plan Design Summary'!E157=\"\",\"\",'Plan Design Summary'!E157)","v":""},{"$f":"IF('Plan Design Summary'!F157=\"\",\"\",'Plan Design Summary'!F157)","v":""}]
[null,{"$f":"IF('Plan Design Summary'!B158=\"\",\"\",'Plan Design Summary'!B158)","v":""},{"$f":"IF('Plan Design Summary'!C158=\"\",\"\",'Plan Design Summary'!C158)","v":""},{"$f":"IF('Plan Design Summary'!D158=\"\",\"\",'Plan Design Summary'!D158)","v":""},{"$f":"IF('Plan Design Summary'!E158=\"\",\"\",'Plan Design Summary'!E158)","v":""},{"$f":"IF('Plan Design Summary'!F158=\"\",\"\",'Plan Design Summary'!F158)","v":""}]
[null,{"$f":"IF('Plan Design Summary'!B159=\"\",\"\",'Plan Design Summary'!B159)","v":""},{"$f":"IF('Plan Design Summary'!C159=\"\",\"\",'Plan Design Summary'!C159)","v":""},{"$f":"IF('Plan Design Summary'!D159=\"\",\"\",'Plan Design Summary'!D159)","v":""},{"$f":"IF('Plan Design Summary'!E159=\"\",\"\",'Plan Design Summary'!E159)","v":""},{"$f":"IF('Plan Design Summary'!F159=\"\",\"\",'Plan Design Summary'!F159)","v":""}]
[null,{"$f":"IF('Plan Design Summary'!B160=\"\",\"\",'Plan Design Summary'!B160)","v":""},{"$f":"IF('Plan Design Summary'!C160=\"\",\"\",'Plan Design Summary'!C160)","v":""},{"$f":"IF('Plan Design Summary'!D160=\"\",\"\",'Plan Design Summary'!D160)","v":""},{"$f":"IF('Plan Design Summary'!E160=\"\",\"\",'Plan Design Summary'!E160)","v":""},{"$f":"IF('Plan Design Summary'!F160=\"\",\"\",'Plan Design Summary'!F160)","v":""}]
[null,{"$f":"IF('Plan Design Summary'!B161=\"\",\"\",'Plan Design Summary'!B161)","v":""},{"$f":"IF('Plan Design Summary'!C161=\"\",\"\",'Plan Design Summary'!C161)","v":""},{"$f":"IF('Plan Design Summary'!D161=\"\",\"\",'Plan Design Summary'!D161)","v":""},{"$f":"IF('Plan Design Summary'!E161=\"\",\"\",'Plan Design Summary'!E161)","v":""},{"$f":"IF('Plan Design Summary'!F161=\"\",\"\",'Plan Design Summary'!F161)","v":""}]
[null,{"$f":"IF('Plan Design Summary'!B162=\"\",\"\",'Plan Design Summary'!B162)","v":""},{"$f":"IF('Plan Design Summary'!C162=\"\",\"\",'Plan Design Summary'!C162)","v":""},{"$f":"IF('Plan Design Summary'!D162=\"\",\"\",'Plan Design Summary'!D162)","v":""},{"$f":"IF('Plan Design Summary'!E162=\"\",\"\",'Plan Design Summary'!E162)","v":""},{"$f":"IF('Plan Design Summary'!F162=\"\",\"\",'Plan Design Summary'!F162)","v":""}]
[null,{"$f":"IF('Plan Design Summary'!B163=\"\",\"\",'Plan Design Summary'!B163)","v":""},{"$f":"IF('Plan Design Summary'!C163=\"\",\"\",'Plan Design Summary'!C163)","v":""},{"$f":"IF('Plan Design Summary'!D163=\"\",\"\",'Plan Design Summary'!D163)","v":""},{"$f":"IF('Plan Design Summary'!E163=\"\",\"\",'Plan Design Summary'!E163)","v":""},{"$f":"IF('Plan Design Summary'!F163=\"\",\"\",'Plan Design Summary'!F163)","v":""}]
[null,{"$f":"IF('Plan Design Summary'!B164=\"\",\"\",'Plan Design Summary'!B164)","v":""},{"$f":"IF('Plan Design Summary'!C164=\"\",\"\",'Plan Design Summary'!C164)","v":""},{"$f":"IF('Plan Design Summary'!D164=\"\",\"\",'Plan Design Summary'!D164)","v":""},{"$f":"IF('Plan Design Summary'!E164=\"\",\"\",'Plan Design Summary'!E164)","v":""},{"$f":"IF('Plan Design Summary'!F164=\"\",\"\",'Plan Design Summary'!F164)","v":""}]
[null,{"$f":"IF('Plan Design Summary'!B165=\"\",\"\",'Plan Design Summary'!B165)","v":""},{"$f":"IF('Plan Design Summary'!C165=\"\",\"\",'Plan Design Summary'!C165)","v":""},{"$f":"IF('Plan Design Summary'!D165=\"\",\"\",'Plan Design Summary'!D165)","v":""},{"$f":"IF('Plan Design Summary'!E165=\"\",\"\",'Plan Design Summary'!E165)","v":""},{"$f":"IF('Plan Design Summary'!F165=\"\",\"\",'Plan Design Summary'!F165)","v":""}]
[null,{"$f":"IF('Plan Design Summary'!B166=\"\",\"\",'Plan Design Summary'!B166)","v":""},{"$f":"IF('Plan Design Summary'!C166=\"\",\"\",'Plan Design Summary'!C166)","v":""},{"$f":"IF('Plan Design Summary'!D166=\"\",\"\",'Plan Design Summary'!D166)","v":""},{"$f":"IF('Plan Design Summary'!E166=\"\",\"\",'Plan Design Summary'!E166)","v":""},{"$f":"IF('Plan Design Summary'!F166=\"\",\"\",'Plan Design Summary'!F166)","v":""}]
[null,{"$f":"IF('Plan Design Summary'!B167=\"\",\"\",'Plan Design Summary'!B167)","v":""},{"$f":"IF('Plan Design Summary'!C167=\"\",\"\",'Plan Design Summary'!C167)","v":""},{"$f":"IF('Plan Design Summary'!D167=\"\",\"\",'Plan Design Summary'!D167)","v":""},{"$f":"IF('Plan Design Summary'!E167=\"\",\"\",'Plan Design Summary'!E167)","v":""},{"$f":"IF('Plan Design Summary'!F167=\"\",\"\",'Plan Design Summary'!F167)","v":""}]
[null,{"$f":"IF('Plan Design Summary'!B168=\"\",\"\",'Plan Design Summary'!B168)","v":""},{"$f":"IF('Plan Design Summary'!C168=\"\",\"\",'Plan Design Summary'!C168)","v":""},{"$f":"IF('Plan Design Summary'!D168=\"\",\"\",'Plan Design Summary'!D168)","v":""},{"$f":"IF('Plan Design Summary'!E168=\"\",\"\",'Plan Design Summary'!E168)","v":""},{"$f":"IF('Plan Design Summary'!F168=\"\",\"\",'Plan Design Summary'!F168)","v":""}]
[null,{"$f":"IF('Plan Design Summary'!B169=\"\",\"\",'Plan Design Summary'!B169)","v":""},{"$f":"IF('Plan Design Summary'!C169=\"\",\"\",'Plan Design Summary'!C169)","v":""},{"$f":"IF('Plan Design Summary'!D169=\"\",\"\",'Plan Design Summary'!D169)","v":""},{"$f":"IF('Plan Design Summary'!E169=\"\",\"\",'Plan Design Summary'!E169)","v":""},{"$f":"IF('Plan Design Summary'!F169=\"\",\"\",'Plan Design Summary'!F169)","v":""}]
[null,{"$f":"IF('Plan Design Summary'!B170=\"\",\"\",'Plan Design Summary'!B170)","v":""},{"$f":"IF('Plan Design Summary'!C170=\"\",\"\",'Plan Design Summary'!C170)","v":""},{"$f":"IF('Plan Design Summary'!D170=\"\",\"\",'Plan Design Summary'!D170)","v":""},{"$f":"IF('Plan Design Summary'!E170=\"\",\"\",'Plan Design Summary'!E170)","v":""},{"$f":"IF('Plan Design Summary'!F170=\"\",\"\",'Plan Design Summary'!F170)","v":""}]
[null,{"$f":"IF('Plan Design Summary'!B171=\"\",\"\",'Plan Design Summary'!B171)","v":""},{"$f":"IF('Plan Design Summary'!C171=\"\",\"\",'Plan Design Summary'!C171)","v":""},{"$f":"IF('Plan Design Summary'!D171=\"\",\"\",'Plan Design Summary'!D171)","v":""},{"$f":"IF('Plan Design Summary'!E171=\"\",\"\",'Plan Design Summary'!E171)","v":""},{"$f":"IF('Plan Design Summary'!F171=\"\",\"\",'Plan Design Summary'!F171)","v":""}]
[null,{"$f":"IF('Plan Design Summary'!B172=\"\",\"\",'Plan Design Summary'!B172)","v":""},{"$f":"IF('Plan Design Summary'!C172=\"\",\"\",'Plan Design Summary'!C172)","v":""},{"$f":"IF('Plan Design Summary'!D172=\"\",\"\",'Plan Design Summary'!D172)","v":""},{"$f":"IF('Plan Design Summary'!E172=\"\",\"\",'Plan Design Summary'!E172)","v":""},{"$f":"IF('Plan Design Summary'!F172=\"\",\"\",'Plan Design Summary'!F172)","v":""}]
[null,{"$f":"IF('Plan Design Summary'!B173=\"\",\"\",'Plan Design Summary'!B173)","v":""},{"$f":"IF('Plan Design Summary'!C173=\"\",\"\",'Plan Design Summary'!C173)","v":""},{"$f":"IF('Plan Design Summary'!D173=\"\",\"\",'Plan Design Summary'!D173)","v":""},{"$f":"IF('Plan Design Summary'!E173=\"\",\"\",'Plan Design Summary'!E173)","v":""},{"$f":"IF('Plan Design Summary'!F173=\"\",\"\",'Plan Design Summary'!F173)","v":""}]
[null,{"$f":"IF('Plan Design Summary'!B174=\"\",\"\",'Plan Design Summary'!B174)","v":""},{"$f":"IF('Plan Design Summary'!C174=\"\",\"\",'Plan Design Summary'!C174)","v":""},{"$f":"IF('Plan Design Summary'!D174=\"\",\"\",'Plan Design Summary'!D174)","v":""},{"$f":"IF('Plan Design Summary'!E174=\"\",\"\",'Plan Design Summary'!E174)","v":""},{"$f":"IF('Plan Design Summary'!F174=\"\",\"\",'Plan Design Summary'!F174)","v":""}]
[null,{"$f":"IF('Plan Design Summary'!B175=\"\",\"\",'Plan Design Summary'!B175)","v":""},{"$f":"IF('Plan Design Summary'!C175=\"\",\"\",'Plan Design Summary'!C175)","v":""},{"$f":"IF('Plan Design Summary'!D175=\"\",\"\",'Plan Design Summary'!D175)","v":""},{"$f":"IF('Plan Design Summary'!E175=\"\",\"\",'Plan Design Summary'!E175)","v":""},{"$f":"IF('Plan Design Summary'!F175=\"\",\"\",'Plan Design Summary'!F175)","v":""}]
[null,{"$f":"IF('Plan Design Summary'!B176=\"\",\"\",'Plan Design Summary'!B176)","v":""},{"$f":"IF('Plan Design Summary'!C176=\"\",\"\",'Plan Design Summary'!C176)","v":""},{"$f":"IF('Plan Design Summary'!D176=\"\",\"\",'Plan Design Summary'!D176)","v":""},{"$f":"IF('Plan Design Summary'!E176=\"\",\"\",'Plan Design Summary'!E176)","v":""},{"$f":"IF('Plan Design Summary'!F176=\"\",\"\",'Plan Design Summary'!F176)","v":""}]
[null,{"$f":"IF('Plan Design Summary'!B177=\"\",\"\",'Plan Design Summary'!B177)","v":""},{"$f":"IF('Plan Design Summary'!C177=\"\",\"\",'Plan Design Summary'!C177)","v":""},{"$f":"IF('Plan Design Summary'!D177=\"\",\"\",'Plan Design Summary'!D177)","v":""},{"$f":"IF('Plan Design Summary'!E177=\"\",\"\",'Plan Design Summary'!E177)","v":""},{"$f":"IF('Plan Design Summary'!F177=\"\",\"\",'Plan Design Summary'!F177)","v":""}]
[null,{"$f":"IF('Plan Design Summary'!B178=\"\",\"\",'Plan Design Summary'!B178)","v":""},{"$f":"IF('Plan Design Summary'!C178=\"\",\"\",'Plan Design Summary'!C178)","v":""},{"$f":"IF('Plan Design Summary'!D178=\"\",\"\",'Plan Design Summary'!D178)","v":""},{"$f":"IF('Plan Design Summary'!E178=\"\",\"\",'Plan Design Summary'!E178)","v":""},{"$f":"IF('Plan Design Summary'!F178=\"\",\"\",'Plan Design Summary'!F178)","v":""}]
[null,{"$f":"IF('Plan Design Summary'!B179=\"\",\"\",'Plan Design Summary'!B179)","v":""},{"$f":"IF('Plan Design Summary'!C179=\"\",\"\",'Plan Design Summary'!C179)","v":""},{"$f":"IF('Plan Design Summary'!D179=\"\",\"\",'Plan Design Summary'!D179)","v":""},{"$f":"IF('Plan Design Summary'!E179=\"\",\"\",'Plan Design Summary'!E179)","v":""},{"$f":"IF('Plan Design Summary'!F179=\"\",\"\",'Plan Design Summary'!F179)","v":""}]
[null,{"$f":"IF('Plan Design Summary'!B180=\"\",\"\",'Plan Design Summary'!B180)","v":""},{"$f":"IF('Plan Design Summary'!C180=\"\",\"\",'Plan Design Summary'!C180)","v":""},{"$f":"IF('Plan Design Summary'!D180=\"\",\"\",'Plan Design Summary'!D180)","v":""},{"$f":"IF('Plan Design Summary'!E180=\"\",\"\",'Plan Design Summary'!E180)","v":""},{"$f":"IF('Plan Design Summary'!F180=\"\",\"\",'Plan Design Summary'!F180)","v":""}]
[null,{"$f":"IF('Plan Design Summary'!B181=\"\",\"\",'Plan Design Summary'!B181)","v":""},{"$f":"IF('Plan Design Summary'!C181=\"\",\"\",'Plan Design Summary'!C181)","v":""},{"$f":"IF('Plan Design Summary'!D181=\"\",\"\",'Plan Design Summary'!D181)","v":""},{"$f":"IF('Plan Design Summary'!E181=\"\",\"\",'Plan Design Summary'!E181)","v":""},{"$f":"IF('Plan Design Summary'!F181=\"\",\"\",'Plan Design Summary'!F181)","v":""}]
[null,{"$f":"IF('Plan Design Summary'!B182=\"\",\"\",'Plan Design Summary'!B182)","v":""},{"$f":"IF('Plan Design Summary'!C182=\"\",\"\",'Plan Design Summary'!C182)","v":""},{"$f":"IF('Plan Design Summary'!D182=\"\",\"\",'Plan Design Summary'!D182)","v":""},{"$f":"IF('Plan Design Summary'!E182=\"\",\"\",'Plan Design Summary'!E182)","v":""},{"$f":"IF('Plan Design Summary'!F182=\"\",\"\",'Plan Design Summary'!F182)","v":""}]
[null,{"$f":"IF('Plan Design Summary'!B183=\"\",\"\",'Plan Design Summary'!B183)","v":""},{"$f":"IF('Plan Design Summary'!C183=\"\",\"\",'Plan Design Summary'!C183)","v":""},{"$f":"IF('Plan Design Summary'!D183=\"\",\"\",'Plan Design Summary'!D183)","v":""},{"$f":"IF('Plan Design Summary'!E183=\"\",\"\",'Plan Design Summary'!E183)","v":""},{"$f":"IF('Plan Design Summary'!F183=\"\",\"\",'Plan Design Summary'!F183)","v":""}]
[null,{"$f":"IF('Plan Design Summary'!B184=\"\",\"\",'Plan Design Summary'!B184)","v":""},{"$f":"IF('Plan Design Summary'!C184=\"\",\"\",'Plan Design Summary'!C184)","v":""},{"$f":"IF('Plan Design Summary'!D184=\"\",\"\",'Plan Design Summary'!D184)","v":""},{"$f":"IF('Plan Design Summary'!E184=\"\",\"\",'Plan Design Summary'!E184)","v":""},{"$f":"IF('Plan Design Summary'!F184=\"\",\"\",'Plan Design Summary'!F184)","v":""}]
[null,{"$f":"IF('Plan Design Summary'!B185=\"\",\"\",'Plan Design Summary'!B185)","v":""},{"$f":"IF('Plan Design Summary'!C185=\"\",\"\",'Plan Design Summary'!C185)","v":""},{"$f":"IF('Plan Design Summary'!D185=\"\",\"\",'Plan Design Summary'!D185)","v":""},{"$f":"IF('Plan Design Summary'!E185=\"\",\"\",'Plan Design Summary'!E185)","v":""},{"$f":"IF('Plan Design Summary'!F185=\"\",\"\",'Plan Design Summary'!F185)","v":""}]
[null,{"$f":"IF('Plan Design Summary'!B186=\"\",\"\",'Plan Design Summary'!B186)","v":""},{"$f":"IF('Plan Design Summary'!C186=\"\",\"\",'Plan Design Summary'!C186)","v":""},{"$f":"IF('Plan Design Summary'!D186=\"\",\"\",'Plan Design Summary'!D186)","v":""},{"$f":"IF('Plan Design Summary'!E186=\"\",\"\",'Plan Design Summary'!E186)","v":""},{"$f":"IF('Plan Design Summary'!F186=\"\",\"\",'Plan Design Summary'!F186)","v":""}]
[null,{"$f":"IF('Plan Design Summary'!B187=\"\",\"\",'Plan Design Summary'!B187)","v":""},{"$f":"IF('Plan Design Summary'!C187=\"\",\"\",'Plan Design Summary'!C187)","v":""},{"$f":"IF('Plan Design Summary'!D187=\"\",\"\",'Plan Design Summary'!D187)","v":""},{"$f":"IF('Plan Design Summary'!E187=\"\",\"\",'Plan Design Summary'!E187)","v":""},{"$f":"IF('Plan Design Summary'!F187=\"\",\"\",'Plan Design Summary'!F187)","v":""}]
[null,{"$f":"IF('Plan Design Summary'!B188=\"\",\"\",'Plan Design Summary'!B188)","v":""},{"$f":"IF('Plan Design Summary'!C188=\"\",\"\",'Plan Design Summary'!C188)","v":""},{"$f":"IF('Plan Design Summary'!D188=\"\",\"\",'Plan Design Summary'!D188)","v":""},{"$f":"IF('Plan Design Summary'!E188=\"\",\"\",'Plan Design Summary'!E188)","v":""},{"$f":"IF('Plan Design Summary'!F188=\"\",\"\",'Plan Design Summary'!F188)","v":""}]
[null,{"$f":"IF('Plan Design Summary'!B189=\"\",\"\",'Plan Design Summary'!B189)","v":""},{"$f":"IF('Plan Design Summary'!C189=\"\",\"\",'Plan Design Summary'!C189)","v":""},{"$f":"IF('Plan Design Summary'!D189=\"\",\"\",'Plan Design Summary'!D189)","v":""},{"$f":"IF('Plan Design Summary'!E189=\"\",\"\",'Plan Design Summary'!E189)","v":""},{"$f":"IF('Plan Design Summary'!F189=\"\",\"\",'Plan Design Summary'!F189)","v":""}]
[null,{"$f":"IF('Plan Design Summary'!B190=\"\",\"\",'Plan Design Summary'!B190)","v":""},{"$f":"IF('Plan Design Summary'!C190=\"\",\"\",'Plan Design Summary'!C190)","v":""},{"$f":"IF('Plan Design Summary'!D190=\"\",\"\",'Plan Design Summary'!D190)","v":""},{"$f":"IF('Plan Design Summary'!E190=\"\",\"\",'Plan Design Summary'!E190)","v":""},{"$f":"IF('Plan Design Summary'!F190=\"\",\"\",'Plan Design Summary'!F190)","v":""}]
[null,{"$f":"IF('Plan Design Summary'!B191=\"\",\"\",'Plan Design Summary'!B191)","v":""},{"$f":"IF('Plan Design Summary'!C191=\"\",\"\",'Plan Design Summary'!C191)","v":""},{"$f":"IF('Plan Design Summary'!D191=\"\",\"\",'Plan Design Summary'!D191)","v":""},{"$f":"IF('Plan Design Summary'!E191=\"\",\"\",'Plan Design Summary'!E191)","v":""},{"$f":"IF('Plan Design Summary'!F191=\"\",\"\",'Plan Design Summary'!F191)","v":""}]
[null,{"$f":"IF('Plan Design Summary'!B192=\"\",\"\",'Plan Design Summary'!B192)","v":""},{"$f":"IF('Plan Design Summary'!C192=\"\",\"\",'Plan Design Summary'!C192)","v":""},{"$f":"IF('Plan Design Summary'!D192=\"\",\"\",'Plan Design Summary'!D192)","v":""},{"$f":"IF('Plan Design Summary'!E192=\"\",\"\",'Plan Design Summary'!E192)","v":""},{"$f":"IF('Plan Design Summary'!F192=\"\",\"\",'Plan Design Summary'!F192)","v":""}]
[null,{"$f":"IF('Plan Design Summary'!B193=\"\",\"\",'Plan Design Summary'!B193)","v":""},{"$f":"IF('Plan Design Summary'!C193=\"\",\"\",'Plan Design Summary'!C193)","v":""},{"$f":"IF('Plan Design Summary'!D193=\"\",\"\",'Plan Design Summary'!D193)","v":""},{"$f":"IF('Plan Design Summary'!E193=\"\",\"\",'Plan Design Summary'!E193)","v":""},{"$f":"IF('Plan Design Summary'!F193=\"\",\"\",'Plan Design Summary'!F193)","v":""}]
[null,{"$f":"IF('Plan Design Summary'!B194=\"\",\"\",'Plan Design Summary'!B194)","v":""},{"$f":"IF('Plan Design Summary'!C194=\"\",\"\",'Plan Design Summary'!C194)","v":""},{"$f":"IF('Plan Design Summary'!D194=\"\",\"\",'Plan Design Summary'!D194)","v":""},{"$f":"IF('Plan Design Summary'!E194=\"\",\"\",'Plan Design Summary'!E194)","v":""},{"$f":"IF('Plan Design Summary'!F194=\"\",\"\",'Plan Design Summary'!F194)","v":""}]
[null,{"$f":"IF('Plan Design Summary'!B195=\"\",\"\",'Plan Design Summary'!B195)","v":""},{"$f":"IF('Plan Design Summary'!C195=\"\",\"\",'Plan Design Summary'!C195)","v":""},{"$f":"IF('Plan Design Summary'!D195=\"\",\"\",'Plan Design Summary'!D195)","v":""},{"$f":"IF('Plan Design Summary'!E195=\"\",\"\",'Plan Design Summary'!E195)","v":""},{"$f":"IF('Plan Design Summary'!F195=\"\",\"\",'Plan Design Summary'!F195)","v":""}]
[null,{"$f":"IF('Plan Design Summary'!B196=\"\",\"\",'Plan Design Summary'!B196)","v":""},{"$f":"IF('Plan Design Summary'!C196=\"\",\"\",'Plan Design Summary'!C196)","v":""},{"$f":"IF('Plan Design Summary'!D196=\"\",\"\",'Plan Design Summary'!D196)","v":""},{"$f":"IF('Plan Design Summary'!E196=\"\",\"\",'Plan Design Summary'!E196)","v":""},{"$f":"IF('Plan Design Summary'!F196=\"\",\"\",'Plan Design Summary'!F196)","v":""}]
[null,{"$f":"IF('Plan Design Summary'!B197=\"\",\"\",'Plan Design Summary'!B197)","v":""},{"$f":"IF('Plan Design Summary'!C197=\"\",\"\",'Plan Design Summary'!C197)","v":""},{"$f":"IF('Plan Design Summary'!D197=\"\",\"\",'Plan Design Summary'!D197)","v":""},{"$f":"IF('Plan Design Summary'!E197=\"\",\"\",'Plan Design Summary'!E197)","v":""},{"$f":"IF('Plan Design Summary'!F197=\"\",\"\",'Plan Design Summary'!F197)","v":""}]
[null,{"$f":"IF('Plan Design Summary'!B198=\"\",\"\",'Plan Design Summary'!B198)","v":""},{"$f":"IF('Plan Design Summary'!C198=\"\",\"\",'Plan Design Summary'!C198)","v":""},{"$f":"IF('Plan Design Summary'!D198=\"\",\"\",'Plan Design Summary'!D198)","v":""},{"$f":"IF('Plan Design Summary'!E198=\"\",\"\",'Plan Design Summary'!E198)","v":""},{"$f":"IF('Plan Design Summary'!F198=\"\",\"\",'Plan Design Summary'!F198)","v":""}]
[null,{"$f":"IF('Plan Design Summary'!B199=\"\",\"\",'Plan Design Summary'!B199)","v":""},{"$f":"IF('Plan Design Summary'!C199=\"\",\"\",'Plan Design Summary'!C199)","v":""},{"$f":"IF('Plan Design Summary'!D199=\"\",\"\",'Plan Design Summary'!D199)","v":""},{"$f":"IF('Plan Design Summary'!E199=\"\",\"\",'Plan Design Summary'!E199)","v":""},{"$f":"IF('Plan Design Summary'!F199=\"\",\"\",'Plan Design Summary'!F199)","v":""}]
[null,{"$f":"IF('Plan Design Summary'!B200=\"\",\"\",'Plan Design Summary'!B200)","v":""},{"$f":"IF('Plan Design Summary'!C200=\"\",\"\",'Plan Design Summary'!C200)","v":""},{"$f":"IF('Plan Design Summary'!D200=\"\",\"\",'Plan Design Summary'!D200)","v":""},{"$f":"IF('Plan Design Summary'!E200=\"\",\"\",'Plan Design Summary'!E200)","v":""},{"$f":"IF('Plan Design Summary'!F200=\"\",\"\",'Plan Design Summary'!F200)","v":""}]
[null,{"$f":"IF('Plan Design Summary'!B201=\"\",\"\",'Plan Design Summary'!B201)","v":""},{"$f":"IF('Plan Design Summary'!C201=\"\",\"\",'Plan Design Summary'!C201)","v":""},{"$f":"IF('Plan Design Summary'!D201=\"\",\"\",'Plan Design Summary'!D201)","v":""},{"$f":"IF('Plan Design Summary'!E201=\"\",\"\",'Plan Design Summary'!E201)","v":""},{"$f":"IF('Plan Design Summary'!F201=\"\",\"\",'Plan Design Summary'!F201)","v":""}]
[null,{"$f":"IF('Plan Design Summary'!B202=\"\",\"\",'Plan Design Summary'!B202)","v":""},{"$f":"IF('Plan Design Summary'!C202=\"\",\"\",'Plan Design Summary'!C202)","v":""},{"$f":"IF('Plan Design Summary'!D202=\"\",\"\",'Plan Design Summary'!D202)","v":""},{"$f":"IF('Plan Design Summary'!E202=\"\",\"\",'Plan Design Summary'!E202)","v":""},{"$f":"IF('Plan Design Summary'!F202=\"\",\"\",'Plan Design Summary'!F202)","v":""}]
[null,{"$f":"IF('Plan Design Summary'!B203=\"\",\"\",'Plan Design Summary'!B203)","v":""},{"$f":"IF('Plan Design Summary'!C203=\"\",\"\",'Plan Design Summary'!C203)","v":""},{"$f":"IF('Plan Design Summary'!D203=\"\",\"\",'Plan Design Summary'!D203)","v":""},{"$f":"IF('Plan Design Summary'!E203=\"\",\"\",'Plan Design Summary'!E203)","v":""},{"$f":"IF('Plan Design Summary'!F203=\"\",\"\",'Plan Design Summary'!F203)","v":""}]
[null,{"$f":"IF('Plan Design Summary'!B204=\"\",\"\",'Plan Design Summary'!B204)","v":""},{"$f":"IF('Plan Design Summary'!C204=\"\",\"\",'Plan Design Summary'!C204)","v":""},{"$f":"IF('Plan Design Summary'!D204=\"\",\"\",'Plan Design Summary'!D204)","v":""},{"$f":"IF('Plan Design Summary'!E204=\"\",\"\",'Plan Design Summary'!E204)","v":""},{"$f":"IF('Plan Design Summary'!F204=\"\",\"\",'Plan Design Summary'!F204)","v":""}]
[null,{"$f":"IF('Plan Design Summary'!B205=\"\",\"\",'Plan Design Summary'!B205)","v":""},{"$f":"IF('Plan Design Summary'!C205=\"\",\"\",'Plan Design Summary'!C205)","v":""},{"$f":"IF('Plan Design Summary'!D205=\"\",\"\",'Plan Design Summary'!D205)","v":""},{"$f":"IF('Plan Design Summary'!E205=\"\",\"\",'Plan Design Summary'!E205)","v":""},{"$f":"IF('Plan Design Summary'!F205=\"\",\"\",'Plan Design Summary'!F205)","v":""}]
[null,{"$f":"IF('Plan Design Summary'!B206=\"\",\"\",'Plan Design Summary'!B206)","v":""},{"$f":"IF('Plan Design Summary'!C206=\"\",\"\",'Plan Design Summary'!C206)","v":""},{"$f":"IF('Plan Design Summary'!D206=\"\",\"\",'Plan Design Summary'!D206)","v":""},{"$f":"IF('Plan Design Summary'!E206=\"\",\"\",'Plan Design Summary'!E206)","v":""},{"$f":"IF('Plan Design Summary'!F206=\"\",\"\",'Plan Design Summary'!F206)","v":""}]
[null,{"$f":"IF('Plan Design Summary'!B207=\"\",\"\",'Plan Design Summary'!B207)","v":""},{"$f":"IF('Plan Design Summary'!C207=\"\",\"\",'Plan Design Summary'!C207)","v":""},{"$f":"IF('Plan Design Summary'!D207=\"\",\"\",'Plan Design Summary'!D207)","v":""},{"$f":"IF('Plan Design Summary'!E207=\"\",\"\",'Plan Design Summary'!E207)","v":""},{"$f":"IF('Plan Design Summary'!F207=\"\",\"\",'Plan Design Summary'!F207)","v":""}]
[null,{"$f":"IF('Plan Design Summary'!B208=\"\",\"\",'Plan Design Summary'!B208)","v":""},{"$f":"IF('Plan Design Summary'!C208=\"\",\"\",'Plan Design Summary'!C208)","v":""},{"$f":"IF('Plan Design Summary'!D208=\"\",\"\",'Plan Design Summary'!D208)","v":""},{"$f":"IF('Plan Design Summary'!E208=\"\",\"\",'Plan Design Summary'!E208)","v":""},{"$f":"IF('Plan Design Summary'!F208=\"\",\"\",'Plan Design Summary'!F208)","v":""}]
[null,{"$f":"IF('Plan Design Summary'!B209=\"\",\"\",'Plan Design Summary'!B209)","v":""},{"$f":"IF('Plan Design Summary'!C209=\"\",\"\",'Plan Design Summary'!C209)","v":""},{"$f":"IF('Plan Design Summary'!D209=\"\",\"\",'Plan Design Summary'!D209)","v":""},{"$f":"IF('Plan Design Summary'!E209=\"\",\"\",'Plan Design Summary'!E209)","v":""},{"$f":"IF('Plan Design Summary'!F209=\"\",\"\",'Plan Design Summary'!F209)","v":""}]
[null,{"$f":"IF('Plan Design Summary'!B210=\"\",\"\",'Plan Design Summary'!B210)","v":""},{"$f":"IF('Plan Design Summary'!C210=\"\",\"\",'Plan Design Summary'!C210)","v":""},{"$f":"IF('Plan Design Summary'!D210=\"\",\"\",'Plan Design Summary'!D210)","v":""},{"$f":"IF('Plan Design Summary'!E210=\"\",\"\",'Plan Design Summary'!E210)","v":""},{"$f":"IF('Plan Design Summary'!F210=\"\",\"\",'Plan Design Summary'!F210)","v":""}]
[null,{"$f":"IF('Plan Design Summary'!B211=\"\",\"\",'Plan Design Summary'!B211)","v":""},{"$f":"IF('Plan Design Summary'!C211=\"\",\"\",'Plan Design Summary'!C211)","v":""},{"$f":"IF('Plan Design Summary'!D211=\"\",\"\",'Plan Design Summary'!D211)","v":""},{"$f":"IF('Plan Design Summary'!E211=\"\",\"\",'Plan Design Summary'!E211)","v":""},{"$f":"IF('Plan Design Summary'!F211=\"\",\"\",'Plan Design Summary'!F211)","v":""}]
[null,{"$f":"IF('Plan Design Summary'!B212=\"\",\"\",'Plan Design Summary'!B212)","v":""},{"$f":"IF('Plan Design Summary'!C212=\"\",\"\",'Plan Design Summary'!C212)","v":""},{"$f":"IF('Plan Design Summary'!D212=\"\",\"\",'Plan Design Summary'!D212)","v":""},{"$f":"IF('Plan Design Summary'!E212=\"\",\"\",'Plan Design Summary'!E212)","v":""},{"$f":"IF('Plan Design Summary'!F212=\"\",\"\",'Plan Design Summary'!F212)","v":""}]
[null,{"$f":"IF('Plan Design Summary'!B213=\"\",\"\",'Plan Design Summary'!B213)","v":""},{"$f":"IF('Plan Design Summary'!C213=\"\",\"\",'Plan Design Summary'!C213)","v":""},{"$f":"IF('Plan Design Summary'!D213=\"\",\"\",'Plan Design Summary'!D213)","v":""},{"$f":"IF('Plan Design Summary'!E213=\"\",\"\",'Plan Design Summary'!E213)","v":""},{"$f":"IF('Plan Design Summary'!F213=\"\",\"\",'Plan Design Summary'!F213)","v":""}]
[null,{"$f":"IF('Plan Design Summary'!B214=\"\",\"\",'Plan Design Summary'!B214)","v":""},{"$f":"IF('Plan Design Summary'!C214=\"\",\"\",'Plan Design Summary'!C214)","v":""},{"$f":"IF('Plan Design Summary'!D214=\"\",\"\",'Plan Design Summary'!D214)","v":""},{"$f":"IF('Plan Design Summary'!E214=\"\",\"\",'Plan Design Summary'!E214)","v":""},{"$f":"IF('Plan Design Summary'!F214=\"\",\"\",'Plan Design Summary'!F214)","v":""}]
[null,{"$f":"IF('Plan Design Summary'!B215=\"\",\"\",'Plan Design Summary'!B215)","v":""},{"$f":"IF('Plan Design Summary'!C215=\"\",\"\",'Plan Design Summary'!C215)","v":""},{"$f":"IF('Plan Design Summary'!D215=\"\",\"\",'Plan Design Summary'!D215)","v":""},{"$f":"IF('Plan Design Summary'!E215=\"\",\"\",'Plan Design Summary'!E215)","v":""},{"$f":"IF('Plan Design Summary'!F215=\"\",\"\",'Plan Design Summary'!F215)","v":""}]
[null,{"$f":"IF('Plan Design Summary'!B216=\"\",\"\",'Plan Design Summary'!B216)","v":""},{"$f":"IF('Plan Design Summary'!C216=\"\",\"\",'Plan Design Summary'!C216)","v":""},{"$f":"IF('Plan Design Summary'!D216=\"\",\"\",'Plan Design Summary'!D216)","v":""},{"$f":"IF('Plan Design Summary'!E216=\"\",\"\",'Plan Design Summary'!E216)","v":""},{"$f":"IF('Plan Design Summary'!F216=\"\",\"\",'Plan Design Summary'!F216)","v":""}]
[null,{"$f":"IF('Plan Design Summary'!B217=\"\",\"\",'Plan Design Summary'!B217)","v":""},{"$f":"IF('Plan Design Summary'!C217=\"\",\"\",'Plan Design Summary'!C217)","v":""},{"$f":"IF('Plan Design Summary'!D217=\"\",\"\",'Plan Design Summary'!D217)","v":""},{"$f":"IF('Plan Design Summary'!E217=\"\",\"\",'Plan Design Summary'!E217)","v":""},{"$f":"IF('Plan Design Summary'!F217=\"\",\"\",'Plan Design Summary'!F217)","v":""}]
[null,{"$f":"IF('Plan Design Summary'!B218=\"\",\"\",'Plan Design Summary'!B218)","v":""},{"$f":"IF('Plan Design Summary'!C218=\"\",\"\",'Plan Design Summary'!C218)","v":""},{"$f":"IF('Plan Design Summary'!D218=\"\",\"\",'Plan Design Summary'!D218)","v":""},{"$f":"IF('Plan Design Summary'!E218=\"\",\"\",'Plan Design Summary'!E218)","v":""},{"$f":"IF('Plan Design Summary'!F218=\"\",\"\",'Plan Design Summary'!F218)","v":""}]
[null,{"$f":"IF('Plan Design Summary'!B219=\"\",\"\",'Plan Design Summary'!B219)","v":""},{"$f":"IF('Plan Design Summary'!C219=\"\",\"\",'Plan Design Summary'!C219)","v":""},{"$f":"IF('Plan Design Summary'!D219=\"\",\"\",'Plan Design Summary'!D219)","v":""},{"$f":"IF('Plan Design Summary'!E219=\"\",\"\",'Plan Design Summary'!E219)","v":""},{"$f":"IF('Plan Design Summary'!F219=\"\",\"\",'Plan Design Summary'!F219)","v":""}]
[null,{"$f":"IF('Plan Design Summary'!B220=\"\",\"\",'Plan Design Summary'!B220)","v":""},{"$f":"IF('Plan Design Summary'!C220=\"\",\"\",'Plan Design Summary'!C220)","v":""},{"$f":"IF('Plan Design Summary'!D220=\"\",\"\",'Plan Design Summary'!D220)","v":""},{"$f":"IF('Plan Design Summary'!E220=\"\",\"\",'Plan Design Summary'!E220)","v":""},{"$f":"IF('Plan Design Summary'!F220=\"\",\"\",'Plan Design Summary'!F220)","v":""}]
[null,{"$f":"IF('Plan Design Summary'!B221=\"\",\"\",'Plan Design Summary'!B221)","v":""},{"$f":"IF('Plan Design Summary'!C221=\"\",\"\",'Plan Design Summary'!C221)","v":""},{"$f":"IF('Plan Design Summary'!D221=\"\",\"\",'Plan Design Summary'!D221)","v":""},{"$f":"IF('Plan Design Summary'!E221=\"\",\"\",'Plan Design Summary'!E221)","v":""},{"$f":"IF('Plan Design Summary'!F221=\"\",\"\",'Plan Design Summary'!F221)","v":""}]
[null,{"$f":"IF('Plan Design Summary'!B222=\"\",\"\",'Plan Design Summary'!B222)","v":""},{"$f":"IF('Plan Design Summary'!C222=\"\",\"\",'Plan Design Summary'!C222)","v":""},{"$f":"IF('Plan Design Summary'!D222=\"\",\"\",'Plan Design Summary'!D222)","v":""},{"$f":"IF('Plan Design Summary'!E222=\"\",\"\",'Plan Design Summary'!E222)","v":""},{"$f":"IF('Plan Design Summary'!F222=\"\",\"\",'Plan Design Summary'!F222)","v":""}]
[null,{"$f":"IF('Plan Design Summary'!B223=\"\",\"\",'Plan Design Summary'!B223)","v":""},{"$f":"IF('Plan Design Summary'!C223=\"\",\"\",'Plan Design Summary'!C223)","v":""},{"$f":"IF('Plan Design Summary'!D223=\"\",\"\",'Plan Design Summary'!D223)","v":""},{"$f":"IF('Plan Design Summary'!E223=\"\",\"\",'Plan Design Summary'!E223)","v":""},{"$f":"IF('Plan Design Summary'!F223=\"\",\"\",'Plan Design Summary'!F223)","v":""}]
[null,{"$f":"IF('Plan Design Summary'!B224=\"\",\"\",'Plan Design Summary'!B224)","v":""},{"$f":"IF('Plan Design Summary'!C224=\"\",\"\",'Plan Design Summary'!C224)","v":""},{"$f":"IF('Plan Design Summary'!D224=\"\",\"\",'Plan Design Summary'!D224)","v":""},{"$f":"IF('Plan Design Summary'!E224=\"\",\"\",'Plan Design Summary'!E224)","v":""},{"$f":"IF('Plan Design Summary'!F224=\"\",\"\",'Plan Design Summary'!F224)","v":""}]
[null,{"$f":"IF('Plan Design Summary'!B225=\"\",\"\",'Plan Design Summary'!B225)","v":""},{"$f":"IF('Plan Design Summary'!C225=\"\",\"\",'Plan Design Summary'!C225)","v":""},{"$f":"IF('Plan Design Summary'!D225=\"\",\"\",'Plan Design Summary'!D225)","v":""},{"$f":"IF('Plan Design Summary'!E225=\"\",\"\",'Plan Design Summary'!E225)","v":""},{"$f":"IF('Plan Design Summary'!F225=\"\",\"\",'Plan Design Summary'!F225)","v":""}]
[null,{"$f":"IF('Plan Design Summary'!B226=\"\",\"\",'Plan Design Summary'!B226)","v":""},{"$f":"IF('Plan Design Summary'!C226=\"\",\"\",'Plan Design Summary'!C226)","v":""},{"$f":"IF('Plan Design Summary'!D226=\"\",\"\",'Plan Design Summary'!D226)","v":""},{"$f":"IF('Plan Design Summary'!E226=\"\",\"\",'Plan Design Summary'!E226)","v":""},{"$f":"IF('Plan Design Summary'!F226=\"\",\"\",'Plan Design Summary'!F226)","v":""}]
[null,{"$f":"IF('Plan Design Summary'!B227=\"\",\"\",'Plan Design Summary'!B227)","v":""},{"$f":"IF('Plan Design Summary'!C227=\"\",\"\",'Plan Design Summary'!C227)","v":""},{"$f":"IF('Plan Design Summary'!D227=\"\",\"\",'Plan Design Summary'!D227)","v":""},{"$f":"IF('Plan Design Summary'!E227=\"\",\"\",'Plan Design Summary'!E227)","v":""},{"$f":"IF('Plan Design Summary'!F227=\"\",\"\",'Plan Design Summary'!F227)","v":""}]
[null,{"$f":"IF('Plan Design Summary'!B228=\"\",\"\",'Plan Design Summary'!B228)","v":""},{"$f":"IF('Plan Design Summary'!C228=\"\",\"\",'Plan Design Summary'!C228)","v":""},{"$f":"IF('Plan Design Summary'!D228=\"\",\"\",'Plan Design Summary'!D228)","v":""},{"$f":"IF('Plan Design Summary'!E228=\"\",\"\",'Plan Design Summary'!E228)","v":""},{"$f":"IF('Plan Design Summary'!F228=\"\",\"\",'Plan Design Summary'!F228)","v":""}]
[null,{"$f":"IF('Plan Design Summary'!B229=\"\",\"\",'Plan Design Summary'!B229)","v":""},{"$f":"IF('Plan Design Summary'!C229=\"\",\"\",'Plan Design Summary'!C229)","v":""},{"$f":"IF('Plan Design Summary'!D229=\"\",\"\",'Plan Design Summary'!D229)","v":""},{"$f":"IF('Plan Design Summary'!E229=\"\",\"\",'Plan Design Summary'!E229)","v":""},{"$f":"IF('Plan Design Summary'!F229=\"\",\"\",'Plan Design Summary'!F229)","v":""}]
[null,{"$f":"IF('Plan Design Summary'!B230=\"\",\"\",'Plan Design Summary'!B230)","v":""},{"$f":"IF('Plan Design Summary'!C230=\"\",\"\",'Plan Design Summary'!C230)","v":""},{"$f":"IF('Plan Design Summary'!D230=\"\",\"\",'Plan Design Summary'!D230)","v":""},{"$f":"IF('Plan Design Summary'!E230=\"\",\"\",'Plan Design Summary'!E230)","v":""},{"$f":"IF('Plan Design Summary'!F230=\"\",\"\",'Plan Design Summary'!F230)","v":""}]
[null,{"$f":"IF('Plan Design Summary'!B231=\"\",\"\",'Plan Design Summary'!B231)","v":""},{"$f":"IF('Plan Design Summary'!C231=\"\",\"\",'Plan Design Summary'!C231)","v":""},{"$f":"IF('Plan Design Summary'!D231=\"\",\"\",'Plan Design Summary'!D231)","v":""},{"$f":"IF('Plan Design Summary'!E231=\"\",\"\",'Plan Design Summary'!E231)","v":""},{"$f":"IF('Plan Design Summary'!F231=\"\",\"\",'Plan Design Summary'!F231)","v":""}]
[null,{"$f":"IF('Plan Design Summary'!B232=\"\",\"\",'Plan Design Summary'!B232)","v":""},{"$f":"IF('Plan Design Summary'!C232=\"\",\"\",'Plan Design Summary'!C232)","v":""},{"$f":"IF('Plan Design Summary'!D232=\"\",\"\",'Plan Design Summary'!D232)","v":""},{"$f":"IF('Plan Design Summary'!E232=\"\",\"\",'Plan Design Summary'!E232)","v":""},{"$f":"IF('Plan Design Summary'!F232=\"\",\"\",'Plan Design Summary'!F232)","v":""}]
[null,{"$f":"IF('Plan Design Summary'!B233=\"\",\"\",'Plan Design Summary'!B233)","v":""},{"$f":"IF('Plan Design Summary'!C233=\"\",\"\",'Plan Design Summary'!C233)","v":""},{"$f":"IF('Plan Design Summary'!D233=\"\",\"\",'Plan Design Summary'!D233)","v":""},{"$f":"IF('Plan Design Summary'!E233=\"\",\"\",'Plan Design Summary'!E233)","v":""},{"$f":"IF('Plan Design Summary'!F233=\"\",\"\",'Plan Design Summary'!F233)","v":""}]
[null,{"$f":"IF('Plan Design Summary'!B234=\"\",\"\",'Plan Design Summary'!B234)","v":""},{"$f":"IF('Plan Design Summary'!C234=\"\",\"\",'Plan Design Summary'!C234)","v":""},{"$f":"IF('Plan Design Summary'!D234=\"\",\"\",'Plan Design Summary'!D234)","v":""},{"$f":"IF('Plan Design Summary'!E234=\"\",\"\",'Plan Design Summary'!E234)","v":""},{"$f":"IF('Plan Design Summary'!F234=\"\",\"\",'Plan Design Summary'!F234)","v":""}]
[null,{"$f":"IF('Plan Design Summary'!B235=\"\",\"\",'Plan Design Summary'!B235)","v":""},{"$f":"IF('Plan Design Summary'!C235=\"\",\"\",'Plan Design Summary'!C235)","v":""},{"$f":"IF('Plan Design Summary'!D235=\"\",\"\",'Plan Design Summary'!D235)","v":""},{"$f":"IF('Plan Design Summary'!E235=\"\",\"\",'Plan Design Summary'!E235)","v":""},{"$f":"IF('Plan Design Summary'!F235=\"\",\"\",'Plan Design Summary'!F235)","v":""}]
[null,{"$f":"IF('Plan Design Summary'!B236=\"\",\"\",'Plan Design Summary'!B236)","v":""},{"$f":"IF('Plan Design Summary'!C236=\"\",\"\",'Plan Design Summary'!C236)","v":""},{"$f":"IF('Plan Design Summary'!D236=\"\",\"\",'Plan Design Summary'!D236)","v":""},{"$f":"IF('Plan Design Summary'!E236=\"\",\"\",'Plan Design Summary'!E236)","v":""},{"$f":"IF('Plan Design Summary'!F236=\"\",\"\",'Plan Design Summary'!F236)","v":""}]
[null,{"$f":"IF('Plan Design Summary'!B237=\"\",\"\",'Plan Design Summary'!B237)","v":""},{"$f":"IF('Plan Design Summary'!C237=\"\",\"\",'Plan Design Summary'!C237)","v":""},{"$f":"IF('Plan Design Summary'!D237=\"\",\"\",'Plan Design Summary'!D237)","v":""},{"$f":"IF('Plan Design Summary'!E237=\"\",\"\",'Plan Design Summary'!E237)","v":""},{"$f":"IF('Plan Design Summary'!F237=\"\",\"\",'Plan Design Summary'!F237)","v":""}]
[null,{"$f":"IF('Plan Design Summary'!B238=\"\",\"\",'Plan Design Summary'!B238)","v":""},{"$f":"IF('Plan Design Summary'!C238=\"\",\"\",'Plan Design Summary'!C238)","v":""},{"$f":"IF('Plan Design Summary'!D238=\"\",\"\",'Plan Design Summary'!D238)","v":""},{"$f":"IF('Plan Design Summary'!E238=\"\",\"\",'Plan Design Summary'!E238)","v":""},{"$f":"IF('Plan Design Summary'!F238=\"\",\"\",'Plan Design Summary'!F238)","v":""}]
[null,{"$f":"IF('Plan Design Summary'!B239=\"\",\"\",'Plan Design Summary'!B239)","v":""},{"$f":"IF('Plan Design Summary'!C239=\"\",\"\",'Plan Design Summary'!C239)","v":""},{"$f":"IF('Plan Design Summary'!D239=\"\",\"\",'Plan Design Summary'!D239)","v":""},{"$f":"IF('Plan Design Summary'!E239=\"\",\"\",'Plan Design Summary'!E239)","v":""},{"$f":"IF('Plan Design Summary'!F239=\"\",\"\",'Plan Design Summary'!F239)","v":""}]
[null,{"$f":"IF('Plan Design Summary'!B240=\"\",\"\",'Plan Design Summary'!B240)","v":""},{"$f":"IF('Plan Design Summary'!C240=\"\",\"\",'Plan Design Summary'!C240)","v":""},{"$f":"IF('Plan Design Summary'!D240=\"\",\"\",'Plan Design Summary'!D240)","v":""},{"$f":"IF('Plan Design Summary'!E240=\"\",\"\",'Plan Design Summary'!E240)","v":""},{"$f":"IF('Plan Design Summary'!F240=\"\",\"\",'Plan Design Summary'!F240)","v":""}]
[null,{"$f":"IF('Plan Design Summary'!B241=\"\",\"\",'Plan Design Summary'!B241)","v":""},{"$f":"IF('Plan Design Summary'!C241=\"\",\"\",'Plan Design Summary'!C241)","v":""},{"$f":"IF('Plan Design Summary'!D241=\"\",\"\",'Plan Design Summary'!D241)","v":""},{"$f":"IF('Plan Design Summary'!E241=\"\",\"\",'Plan Design Summary'!E241)","v":""},{"$f":"IF('Plan Design Summary'!F241=\"\",\"\",'Plan Design Summary'!F241)","v":""}]
[null,{"$f":"IF('Plan Design Summary'!B242=\"\",\"\",'Plan Design Summary'!B242)","v":""},{"$f":"IF('Plan Design Summary'!C242=\"\",\"\",'Plan Design Summary'!C242)","v":""},{"$f":"IF('Plan Design Summary'!D242=\"\",\"\",'Plan Design Summary'!D242)","v":""},{"$f":"IF('Plan Design Summary'!E242=\"\",\"\",'Plan Design Summary'!E242)","v":""},{"$f":"IF('Plan Design Summary'!F242=\"\",\"\",'Plan Design Summary'!F242)","v":""}]
[null,{"$f":"IF('Plan Design Summary'!B243=\"\",\"\",'Plan Design Summary'!B243)","v":""},{"$f":"IF('Plan Design Summary'!C243=\"\",\"\",'Plan Design Summary'!C243)","v":""},{"$f":"IF('Plan Design Summary'!D243=\"\",\"\",'Plan Design Summary'!D243)","v":""},{"$f":"IF('Plan Design Summary'!E243=\"\",\"\",'Plan Design Summary'!E243)","v":""},{"$f":"IF('Plan Design Summary'!F243=\"\",\"\",'Plan Design Summary'!F243)","v":""}]
[null,{"$f":"IF('Plan Design Summary'!B244=\"\",\"\",'Plan Design Summary'!B244)","v":""},{"$f":"IF('Plan Design Summary'!C244=\"\",\"\",'Plan Design Summary'!C244)","v":""},{"$f":"IF('Plan Design Summary'!D244=\"\",\"\",'Plan Design Summary'!D244)","v":""},{"$f":"IF('Plan Design Summary'!E244=\"\",\"\",'Plan Design Summary'!E244)","v":""},{"$f":"IF('Plan Design Summary'!F244=\"\",\"\",'Plan Design Summary'!F244)","v":""}]
[null,{"$f":"IF('Plan Design Summary'!B245=\"\",\"\",'Plan Design Summary'!B245)","v":""},{"$f":"IF('Plan Design Summary'!C245=\"\",\"\",'Plan Design Summary'!C245)","v":""},{"$f":"IF('Plan Design Summary'!D245=\"\",\"\",'Plan Design Summary'!D245)","v":""},{"$f":"IF('Plan Design Summary'!E245=\"\",\"\",'Plan Design Summary'!E245)","v":""},{"$f":"IF('Plan Design Summary'!F245=\"\",\"\",'Plan Design Summary'!F245)","v":""}]
[null,{"$f":"IF('Plan Design Summary'!B246=\"\",\"\",'Plan Design Summary'!B246)","v":""},{"$f":"IF('Plan Design Summary'!C246=\"\",\"\",'Plan Design Summary'!C246)","v":""},{"$f":"IF('Plan Design Summary'!D246=\"\",\"\",'Plan Design Summary'!D246)","v":""},{"$f":"IF('Plan Design Summary'!E246=\"\",\"\",'Plan Design Summary'!E246)","v":""},{"$f":"IF('Plan Design Summary'!F246=\"\",\"\",'Plan Design Summary'!F246)","v":""}]
[null,{"$f":"IF('Plan Design Summary'!B247=\"\",\"\",'Plan Design Summary'!B247)","v":""},{"$f":"IF('Plan Design Summary'!C247=\"\",\"\",'Plan Design Summary'!C247)","v":""},{"$f":"IF('Plan Design Summary'!D247=\"\",\"\",'Plan Design Summary'!D247)","v":""},{"$f":"IF('Plan Design Summary'!E247=\"\",\"\",'Plan Design Summary'!E247)","v":""},{"$f":"IF('Plan Design Summary'!F247=\"\",\"\",'Plan Design Summary'!F247)","v":""}]
[null,{"$f":"IF('Plan Design Summary'!B248=\"\",\"\",'Plan Design Summary'!B248)","v":""},{"$f":"IF('Plan Design Summary'!C248=\"\",\"\",'Plan Design Summary'!C248)","v":""},{"$f":"IF('Plan Design Summary'!D248=\"\",\"\",'Plan Design Summary'!D248)","v":""},{"$f":"IF('Plan Design Summary'!E248=\"\",\"\",'Plan Design Summary'!E248)","v":""},{"$f":"IF('Plan Design Summary'!F248=\"\",\"\",'Plan Design Summary'!F248)","v":""}]
[null,{"$f":"IF('Plan Design Summary'!B249=\"\",\"\",'Plan Design Summary'!B249)","v":""},{"$f":"IF('Plan Design Summary'!C249=\"\",\"\",'Plan Design Summary'!C249)","v":""},{"$f":"IF('Plan Design Summary'!D249=\"\",\"\",'Plan Design Summary'!D249)","v":""},{"$f":"IF('Plan Design Summary'!E249=\"\",\"\",'Plan Design Summary'!E249)","v":""},{"$f":"IF('Plan Design Summary'!F249=\"\",\"\",'Plan Design Summary'!F249)","v":""}]
[null,{"$f":"IF('Plan Design Summary'!B250=\"\",\"\",'Plan Design Summary'!B250)","v":""},{"$f":"IF('Plan Design Summary'!C250=\"\",\"\",'Plan Design Summary'!C250)","v":""},{"$f":"IF('Plan Design Summary'!D250=\"\",\"\",'Plan Design Summary'!D250)","v":""},{"$f":"IF('Plan Design Summary'!E250=\"\",\"\",'Plan Design Summary'!E250)","v":""},{"$f":"IF('Plan Design Summary'!F250=\"\",\"\",'Plan Design Summary'!F250)","v":""}]
[null,{"$f":"IF('Plan Design Summary'!B251=\"\",\"\",'Plan Design Summary'!B251)","v":""},{"$f":"IF('Plan Design Summary'!C251=\"\",\"\",'Plan Design Summary'!C251)","v":""},{"$f":"IF('Plan Design Summary'!D251=\"\",\"\",'Plan Design Summary'!D251)","v":""},{"$f":"IF('Plan Design Summary'!E251=\"\",\"\",'Plan Design Summary'!E251)","v":""},{"$f":"IF('Plan Design Summary'!F251=\"\",\"\",'Plan Design Summary'!F251)","v":""}]
[null,{"$f":"IF('Plan Design Summary'!B252=\"\",\"\",'Plan Design Summary'!B252)","v":""},{"$f":"IF('Plan Design Summary'!C252=\"\",\"\",'Plan Design Summary'!C252)","v":""},{"$f":"IF('Plan Design Summary'!D252=\"\",\"\",'Plan Design Summary'!D252)","v":""},{"$f":"IF('Plan Design Summary'!E252=\"\",\"\",'Plan Design Summary'!E252)","v":""},{"$f":"IF('Plan Design Summary'!F252=\"\",\"\",'Plan Design Summary'!F252)","v":""}]
[null,{"$f":"IF('Plan Design Summary'!B253=\"\",\"\",'Plan Design Summary'!B253)","v":""},{"$f":"IF('Plan Design Summary'!C253=\"\",\"\",'Plan Design Summary'!C253)","v":""},{"$f":"IF('Plan Design Summary'!D253=\"\",\"\",'Plan Design Summary'!D253)","v":""},{"$f":"IF('Plan Design Summary'!E253=\"\",\"\",'Plan Design Summary'!E253)","v":""},{"$f":"IF('Plan Design Summary'!F253=\"\",\"\",'Plan Design Summary'!F253)","v":""}]
[null,{"$f":"IF('Plan Design Summary'!B254=\"\",\"\",'Plan Design Summary'!B254)","v":""},{"$f":"IF('Plan Design Summary'!C254=\"\",\"\",'Plan Design Summary'!C254)","v":""},{"$f":"IF('Plan Design Summary'!D254=\"\",\"\",'Plan Design Summary'!D254)","v":""},{"$f":"IF('Plan Design Summary'!E254=\"\",\"\",'Plan Design Summary'!E254)","v":""},{"$f":"IF('Plan Design Summary'!F254=\"\",\"\",'Plan Design Summary'!F254)","v":""}]
[null,{"$f":"IF('Plan Design Summary'!B255=\"\",\"\",'Plan Design Summary'!B255)","v":""},{"$f":"IF('Plan Design Summary'!C255=\"\",\"\",'Plan Design Summary'!C255)","v":""},{"$f":"IF('Plan Design Summary'!D255=\"\",\"\",'Plan Design Summary'!D255)","v":""},{"$f":"IF('Plan Design Summary'!E255=\"\",\"\",'Plan Design Summary'!E255)","v":""},{"$f":"IF('Plan Design Summary'!F255=\"\",\"\",'Plan Design Summary'!F255)","v":""}]
[null,{"$f":"IF('Plan Design Summary'!B256=\"\",\"\",'Plan Design Summary'!B256)","v":""},{"$f":"IF('Plan Design Summary'!C256=\"\",\"\",'Plan Design Summary'!C256)","v":""},{"$f":"IF('Plan Design Summary'!D256=\"\",\"\",'Plan Design Summary'!D256)","v":""},{"$f":"IF('Plan Design Summary'!E256=\"\",\"\",'Plan Design Summary'!E256)","v":""},{"$f":"IF('Plan Design Summary'!F256=\"\",\"\",'Plan Design Summary'!F256)","v":""}]